Workbook

Sheet NOTES
B2: The model has actual and test data to illustrate the workings of the model. | E2: ='Model update'!B5 -> 2024-25 | F2: ='Model update'!B8 -> 2023-24 | G2: =IF('Model update'!B9="HY23","2022",'Model update'!B9) -> 2022-23
B4: Issue | C4: Location | D4: Item | E4: Comment
A6: AER: | B6: 1 | C6: 'Model update'!B17:B22 | D6: CPI | E6: ="Updated December "&LEFT(E2,4)-1&" CPI for "&E2 -> Updated December 2023 CPI for 2024-25 | F6: NOTE: This worksheet is programmed to update for each year - use as checklist and note any placeholders or changes
F7: NOTE: Worksheet names in this file are programmed to update each year once each worksheet is accessed and a cell is selected
B8: =B6+1 -> 2 | C8: 'Model update'!B35:B38 | D8: ="Xt for "&E2 -> Xt for 2024-25 | E8: ="Updated "&$E$2&" value" -> Updated 2024-25 value
B10: =B8+1 -> 3 | C10: 'Model update'!B44:B48 | D10: Real Pre-tax WACC (rptw) | E10: ="Updated "&$E$2&" value" -> Updated 2024-25 value
B12: =B10+1 -> 4 | C12: 'Model update'!G18:G21 | D12: ="Pass Through Amount for "&E2 -> Pass Through Amount for 2024-25 | E12: ="Updated "&E2&" AP(t) value" -> Updated 2024-25 AP(t) value
B14: =B12+1 -> 5 | C14: ="Prop"&E2&"DistTar!E8:E96" -> Prop2024-25DistTar!E8:E96 | D14: =F2&" tariffs" -> 2023-24 tariffs | E14: ="Updated from "&F2&" model" -> Updated from 2023-24 model
B16: =B14+1 -> 6 | C16: ARS!B6:B12 | D16: =F2&" ARS tariffs" -> 2023-24 ARS tariffs | E16: ="Updated from "&F2&" model" -> Updated from 2023-24 model
A19: AusNet: | B19: 1 | C19: 'Model update'!F30:F34 | D19: ="Estimated safeguard mechanism amount for "&F2 -> Estimated safeguard mechanism amount for 2023-24 | E19: ="Updated "&F2&" estimated cf(t) value, used for the cf(t-1) value for "&E2 -> Updated 2023-24 estimated cf(t) value, used for the cf(t-1) value for 2024-25
B21: =B19+1 -> 2 | C21: 'Model update'!G30:G34 | D21: ="Actual safeguard mechanism amount for "&G2 -> Actual safeguard mechanism amount for 2022-23 | E21: ="Updated "&G2&" actual cf(t) value, used for the cf(t-2) value for "&E2 -> Updated 2022-23 actual cf(t) value, used for the cf(t-2) value for 2024-25
B23: =B21+1 -> 3 | C23: 'Model update'!F43:F47 | D23: ="Estimated abolishments amount for "&F2 -> Estimated abolishments amount for 2023-24 | E23: ="Updated "&F2&" estimated af(t) value, used for the af(t-1) value for "&E2 -> Updated 2023-24 estimated af(t) value, used for the af(t-1) value for 2024-25
B25: =B23+1 -> 4 | C25: 'Model update'!G43:G47 | D25: ="Actual abolishments amount for "&G2 -> Actual abolishments amount for 2022-23 | E25: ="Updated "&G2&" actual af(t) value, used for the af(t-2) value for "&E2 -> Updated 2022-23 actual af(t) value, used for the af(t-2) value for 2024-25
B27: =B25+1 -> 5 | C27: ="Prop"&E2&"DistTar!D8:D96" -> Prop2024-25DistTar!D8:D96 | D27: ="Proposed "&E2&" Tariffs" -> Proposed 2024-25 Tariffs
B29: =B27+1 -> 6 | C29: ="Prop"&E2&"DistTar!F8:F96" -> Prop2024-25DistTar!F8:F96 | D29: ="Actual "&G2&" Volumes" -> Actual 2022-23 Volumes
B31: =B29+1 -> 7 | C31: ARS!C6:C12 | D31: ="Proposed "&E2&" Ancillary Reference Services Charges" -> Proposed 2024-25 Ancillary Reference Services Charges | E31: Calculated using formula
A39: Reset | B39: 1 | C39: Whole workbook | D39: Colour formatting | E39: Adjusted colour formatting away from yellow to ensure yellow can be used to clearly identify confidential material
B41: =B39+1 -> 2 | C41: 'Model update' | D41: CPI | E41: Adjusted CPI to have CPI for whole period
B43: =B41+1 -> 3 | C43: 'Model update' | D43: WACC | E43: Adjusted WACC to have WACC for whole period
B45: =B43+1 -> 4 | C45: 'Model update' | D45: Pass-through adjustment | E45: Adjusted to have $$ amount as input and calculate adjustment factor
B47: =B45+1 -> 5 | C47: 'Model update' | D47: Safeguard mechanism | E47: Added safeguard mechanism adjustment
B49: =B47+1 -> 6 | C49: 'Model update' | D49: Abolishments adjustment | E49: Added abolishments adjustment
B51: =B49+1 -> 7 | C51: Prop2024-25DistTar | D51: Tariffs | E51: Updated tariff schedule
B53: =B51+1 -> 8 | C53: 2024-25TarContForm | D53: Tariff Control Formula | E53: Simplified, and updated for new adjustment factors. Added denominators for calculations in adjustments.
B55: =B53+1 -> 9 | C55: 2024-25RebalContForm | D55: Rebalancing constraint formulae | E55: Updated for new adjustment factors
B57: =B55+1 -> 10 | C57: ARS | D57: Ancillary reference services | E57: Updated for new tariff schedule

Sheet Model update
A3: Tariff Approval Template for | B3: AusNet Services
A5: Financial year | B5: 2024-25
A7: t | B7: =B5 -> 2024-25
A8: t-1 | B8: =LEFT(B7,4)-1&"-"&RIGHT(B7,2)-1 -> 2023-24
A9: t-2 | B9: =LEFT(B8,4)-1&"-"&RIGHT(B8,2)-1 -> 2022-23
A10: t-3 | B10: 2021-22
A13: Update orange highlighted cells where appropriate | D13: Darker orange cells should be overwritten with t-1 values before changing to new year
A15: CPI
D16: Pass Through Amounts : PT (t) | G16: AP(t) | H16: PT'(t)
A17: CPI Index December 2021 | B17: 121.3 | D17: =A44 -> 2023-24 | G17: 0
A18: CPI Index December 2022 | B18: 130.8 | D18: =A45 -> 2024-25 | G18: 0 | H18: =G18/'2024-25TarContForm'!$G$11 -> 0
A19: CPI Index December 2023 | B19: 136.1 | D19: 2025-26 | H19: =G19/'2024-25TarContForm'!$G$11 -> 0
A20: CPI Index December 2024 | B20: 140.08 | D20: 2026-27 | H20: =G20/'2024-25TarContForm'!$G$11 -> 0
A21: CPI Index December 2025 | B21: 144.1693622 | D21: 2027-28 | H21: =G21/'2024-25TarContForm'!$G$11 -> 0
A22: CPI Index December 2026 | B22: 148.3781054
D23: ="Pass Through Amount for "&B$5 -> Pass Through Amount for 2024-25 | H23: =(1+VLOOKUP($B$5,D17:H21,5,FALSE))/(1+VLOOKUP($B$8,D17:H21,5,FALSE))-1 -> 0
A24: ="CPI "&A44 -> CPI 2023-24 | B24: =B18/B17-1 -> 0.07831821929 | D24: The Pass Through Amount is to include an amount that reflects the time value of money between incurring the costs and recovering the costs
A25: ="CPI "&A45 -> CPI 2024-25 | B25: =B19/B18-1 -> 0.04051987768 | D25: and excludes any amounts already passed through in reference tariffs.
A26: CPI 2025-26 | B26: 0.02924320353
A27: CPI 2026-27 | B27: 0.02919304851
A28: CPI 2027-28 | B28: 0.02919304851 | D28: Safeguard Mechanism Amounts : C (t) | F28: Est. cf(t) | G28: Act. cf(t) | H28: C'(t) | M28: At=0 for the purpose of this formula as it is unknown at the time of
D29: 2022-23 | F29: 0 | G29: 0 | N29: calculation, and prevents a circular reference. This gives
A30: ="CPI " &$B$8 -> CPI 2023-24 | B30: =VLOOKUP(A30,A24:B28,2,FALSE) -> 0.07831821929 | D30: =A44 -> 2023-24 | F30: 231500 | N30: the intended outcome of calculating a percentage of the revenue
A31: ="CPI " &$B$5 -> CPI 2024-25 | B31: =VLOOKUP(A31,A24:B28,2,FALSE) -> 0.04051987768 | D31: =A45 -> 2024-25 | H31: =(('Model update'!F30*(1+'Model update'!B45)*(1+'Model update'!B25))+(('Model update'!G29-'Model update'!F29)*(1+'Model update'!B44)*(1+'Model update'!B45)*(1+'Model update'!B24)*(1+'Model update'!B25)))/'2024-25TarContForm'!$G$12 -> 0.001051692488 | N31: that the adjustment will be added to.
D32: 2025-26 | H32: =(('Model update'!F31*(1+'Model update'!B46)*(1+'Model update'!B26))+(('Model update'!G30-'Model update'!F30)*(1+'Model update'!B45)*(1+'Model update'!B46)*(1+'Model update'!B25)*(1+'Model update'!B26)))/'2024-25TarContForm'!$G$12 -> -0.001082447346
D33: 2026-27 | H33: =(('Model update'!F32*(1+'Model update'!B47)*(1+'Model update'!B27))+(('Model update'!G31-'Model update'!F31)*(1+'Model update'!B46)*(1+'Model update'!B47)*(1+'Model update'!B26)*(1+'Model update'!B27)))/'2024-25TarContForm'!$G$12 -> 0
A34: ="Xt for "&B$5 -> Xt for 2024-25 | D34: 2027-28 | H34: =(('Model update'!F33*(1+'Model update'!B48)*(1+'Model update'!B28))+(('Model update'!G32-'Model update'!F32)*(1+'Model update'!B47)*(1+'Model update'!B48)*(1+'Model update'!B27)*(1+'Model update'!B28)))/'2024-25TarContForm'!$G$12 -> 0
A35: 2024-25 | B35: -0.02411520204
A36: 2025-26 | D36: ="Safeguard Mechanism Amount for "&B$5 -> Safeguard Mechanism Amount for 2024-25 | H36: =(1+VLOOKUP($B$5,D30:H34,5,FALSE))/(1+VLOOKUP($B$8,D30:H34,5,FALSE))-1 -> 0.001051692488
A37: 2026-27
A38: 2027-28
A40: ="Xt for "&B$5 -> Xt for 2024-25 | B40: =VLOOKUP(B5,A35:B38,2,FALSE) -> -0.02411520204
D41: Abolishment True-up Amounts : A (t) | E41: Fcst af(t) | F41: Estimate af(t) | G41: Act. af(t) | H41: A'(t)
A42: Pre-tax WACC for distribution tariffs | D42: 2022-23 | E42: 0 | F42: 0 | G42: 0
D43: =A44 -> 2023-24 | E43: =E52*(1+H52) -> 1527242.837 | F43: 1578100
A44: 2023-24 | B44: 0.02984001067 | D44: =A45 -> 2024-25 | E44: =E53*(1+H52)*(1+H52) -> 2041040.782 | H44: =(((F43-'Model update'!E43)*(1+'Model update'!B45)*(1+'Model update'!B25))+(('Model update'!G42-'Model update'!F42)*(1+'Model update'!B44)*(1+'Model update'!B45)*(1+'Model update'!B24)*(1+'Model update'!B25)))/'2024-25TarContForm'!$G$13 -> 0.0002307987237
A45: =A35 -> 2024-25 | B45: 0.03066616949 | D45: 2025-26 | E45: =E54*(1+H52)*(1+H52)*(1+H52) -> 2584894.111 | H45: =(((F44-'Model update'!E44)*(1+'Model update'!B46)*(1+'Model update'!B26))+(('Model update'!G43-'Model update'!F43)*(1+'Model update'!B45)*(1+'Model update'!B46)*(1+'Model update'!B25)*(1+'Model update'!B26)))/'2024-25TarContForm'!$G$13 -> -0.01626073239
A46: =A36 -> 2025-26 | D46: 2026-27 | E46: =E55*(1+H52)*(1+H52)*(1+H52)*(1+H52) -> 4152272.148 | H46: =(((F45-'Model update'!E45)*(1+'Model update'!B47)*(1+'Model update'!B27))+(('Model update'!G44-'Model update'!F44)*(1+'Model update'!B46)*(1+'Model update'!B47)*(1+'Model update'!B26)*(1+'Model update'!B27)))/'2024-25TarContForm'!$G$13 -> -0.01125777259
A47: 2026-27 | D47: 2027-28 | E47: =E56*(1+H52)*(1+H52)*(1+H52)*(1+H52)*(1+H52) -> 5813282.016 | H47: =(((F46-'Model update'!E46)*(1+'Model update'!B48)*(1+'Model update'!B28))+(('Model update'!G45-'Model update'!F45)*(1+'Model update'!B47)*(1+'Model update'!B48)*(1+'Model update'!B27)*(1+'Model update'!B28)))/'2024-25TarContForm'!$G$13 -> -0.01808404274
A48: 2027-28
D49: ="Abolishment True-up Amount for "&B$5 -> Abolishment True-up Amount for 2024-25 | H49: =(1+VLOOKUP($B$5,D43:H47,5,FALSE))/(1+VLOOKUP($B$8,D43:H47,5,FALSE))-1 -> 0.0002307987237
A50: ="Pre-tax real WACC for "&B8 -> Pre-tax real WACC for 2023-24 | B50: =VLOOKUP(B8,A44:B48,2,FALSE) -> 0.02984001067
A51: ="Pre-tax real WACC for "&B5 -> Pre-tax real WACC for 2024-25 | B51: =VLOOKUP(B5,A44:B48,2,FALSE) -> 0.03066616949 | E51: Fcst af(t) $22-23 | H51: Forecast inflation
E52: 1483922.612 | H52: 0.02919304851
E53: 1926894.753
E54: 2371112.853
E55: 3700824.014
E56: 5034277.732

Sheet Prop2024-25DistTar
B1: ="Tariff Approval - "&'Model update'!B3 -> Tariff Approval - AusNet Services | C1: ="Prop"&'Model update'!B5&"DistTar" -> Prop2024-25DistTar
B3: ="PROPOSED "&'Model update'!$B$5&" DISTRIBUTION TARIFFS" -> PROPOSED 2024-25 DISTRIBUTION TARIFFS
B5: Proposed tariff name | C5: Existing name | D5: ="Prop "&'Model update'!$B$5&" Tariff" -> Prop 2024-25 Tariff | E5: ="Exist "&'Model update'!$B$8&" Tariff" -> Exist 2023-24 Tariff | F5: ="Actual "&'Model update'!$B$9&" Volumes" -> Actual 2022-23 Volumes | G5: Prop Tar Revenue | H5: Exist Tar Revenue
B6: Tariff V - Central Zone - Domestic | C6: Tariff V - Central Zone - Domestic
B8: Fixed Charge | C8: Fixed Charge | D8: 0.4942 | E8: 0.4706 | F8: 596408.5466 | G8: =D8*$F8*365 -> 107581962.9 | H8: =E8*$F8*365 -> 102444499.6
B9: Peak 0 - 0.1 | C9: Peak 0 - 0.1 | D9: 7.0919 | E9: 6.4835 | F9: 4565205.316 | G9: =D9*$F9 -> 32375979.58 | H9: 29598508.67
B10: Peak 0.1 - 0.2 | C10: Peak 0.1 - 0.2 | D10: 4.2744 | E10: 3.9077 | F10: 2974213.117 | G10: 12712976.55 | H10: 11622332.6
B11: Peak 0.2 - 1.4 | C11: Peak 0.2 - 1.4 | D11: 0.7431 | E11: 0.6794 | F11: 4297336.978 | G11: 3193351.108 | H11: 2919610.743
B12: Peak > 1.4 | C12: Peak > 1.4 | D12: 0.6676 | E12: 0.6103 | F12: 44764.02677 | G12: 29884.46427 | H12: 27319.48554
B13: Off Peak 0 - 0.1 | C13: Off Peak 0 - 0.1 | D13: 2.4039 | E13: 2.1977 | F13: 7981395.107 | G13: 19186475.7 | H13: 17540712.03
B14: Off Peak 0.1 - 0.2 | C14: Off Peak 0.1 - 0.2 | D14: 1.8997 | E14: 1.7367 | F14: 2139042.662 | G14: 4063539.345 | H14: 3714875.391
B15: Off Peak 0.2 - 1.4 | C15: Off Peak 0.2 - 1.4 | D15: 0.7281 | E15: 0.6656 | F15: 1445615.067 | G15: 1052552.33 | H15: 962201.3887
B16: Off Peak > 1.4 | C16: Off Peak > 1.4 | D16: 0.2583 | E16: 0.2361 | F16: 63559.90267 | G16: 16417.52286 | H16: 15006.49302
B17: Tariff V - Central Zone - Non-domestic | C17: Tariff V - Central Zone - Non-domestic
B19: Fixed Charge | C19: Fixed Charge | D19: 0.516 | E19: 0.4913 | F19: 11341.70107 | G19: =D19*$F19*365 -> 2136095.979 | H19: =E19*$F19*365 -> 2033844.873
B20: Peak 0 - 0.1 | C20: Peak 0 - 0.1 | D20: 1.2776 | E20: 1.168 | F20: 77701.7521 | G20: =D20*$F20 -> 99271.75849 | H20: 90755.64646
B21: Peak 0.1 - 0.2 | C21: Peak 0.1 - 0.2 | D21: 1.2171 | E21: 1.1127 | F21: 62502.95603 | G21: 76072.34778 | H21: 69547.03917
B22: Peak 0.2 - 1.4 | C22: Peak 0.2 - 1.4 | D22: 1.0953 | E22: 1.0013 | F22: 386317.6681 | G22: 423133.7418 | H22: 386819.881
B23: Peak > 1.4 | C23: Peak > 1.4 | D23: 0.836 | E23: 0.7643 | F23: 1056407.419 | G23: 883156.6021 | H23: 807412.1902
B24: Off Peak 0 - 0.1 | C24: Off Peak 0 - 0.1 | D24: 1.2105 | E24: 1.1067 | F24: 168895.7433 | G24: 204448.2973 | H24: 186916.9191
B25: Off Peak 0.1 - 0.2 | C25: Off Peak 0.1 - 0.2 | D25: 0.847 | E25: 0.7743 | F25: 123143.7536 | G25: 104302.7593 | H25: 95350.20841
B26: Off Peak 0.2 - 1.4 | C26: Off Peak 0.2 - 1.4 | D26: 0.6973 | E26: 0.6375 | F26: 749643.2598 | G26: 522726.245 | H26: 477897.5781
B27: Off Peak > 1.4 | C27: Off Peak > 1.4 | D27: 0.6761 | E27: 0.6181 | F27: 1641338.785 | G27: 1109709.153 | H27: 1014511.503
B28: Tariff V - West Zone - Domestic | C28: Tariff V - West Zone - Domestic
B30: Fixed Charge | C30: Fixed Charge | D30: 0.4942 | E30: 0.4706 | F30: 154491.291 | G30: =D30*$F30*365 -> 27867602.54 | H30: =E30*$F30*365 -> 26536814.56
B31: Peak 0 - 0.1 | C31: Peak 0 - 0.1 | D31: 3.7486 | E31: 3.427 | F31: 1212721.601 | G31: =D31*$F31 -> 4546008.194 | H31: 4155996.927
B32: Peak 0.1 - 0.2 | C32: Peak 0.1 - 0.2 | D32: 2.6991 | E32: 2.4676 | F32: 843491.0351 | G32: 2276666.653 | H32: 2081398.478
B33: Peak 0.2 - 1.4 | C33: Peak 0.2 - 1.4 | D33: 0.8719 | E33: 0.7971 | F33: 1243315.019 | G33: 1084046.365 | H33: 991046.4016
B34: Peak > 1.4 | C34: Peak > 1.4 | D34: 0.8357 | E34: 0.764 | F34: 8182.359366 | G34: 6837.997722 | H34: 6251.322556
B35: Off Peak 0 - 0.1 | C35: Off Peak 0 - 0.1 | D35: 1.159 | E35: 1.0596 | F35: 2101963.744 | G35: 2436175.979 | H35: 2227240.783
B36: Off Peak 0.1 - 0.2 | C36: Off Peak 0.1 - 0.2 | D36: 1.0862 | E36: 0.993 | F36: 687337.4241 | G36: 746585.91 | H36: 682526.0621
B37: Off Peak 0.2 - 1.4 | C37: Off Peak 0.2 - 1.4 | D37: 0.6193 | E37: 0.5662 | F37: 511727.7111 | G37: 316912.9715 | H37: 289740.2301
B38: Off Peak > 1.4 | C38: Off Peak > 1.4 | D38: 0.1222 | E38: 0.1117 | F38: 10147.40189 | G38: 1240.012511 | H38: 1133.464791
B39: Tariff V - West Zone - Non-domestic | C39: Tariff V - West Zone - Non-domestic
B41: Fixed Charge | C41: Fixed Charge | D41: 0.516 | E41: 0.4913 | F41: 6319.536396 | G41: =D41*$F41*365 -> 1190221.485 | H41: =E41*$F41*365 -> 1133247.704
B42: Peak 0 - 0.1 | C42: Peak 0 - 0.1 | D42: 1.9524 | E42: 1.7849 | F42: 39559.94756 | G42: =D42*$F42 -> 77236.84161 | H42: 70610.5504
B43: Peak 0.1 - 0.2 | C43: Peak 0.1 - 0.2 | D43: 1.6456 | E43: 1.5044 | F43: 30232.37597 | G43: 49750.3979 | H43: 45481.58641
B44: Peak 0.2 - 1.4 | C44: Peak 0.2 - 1.4 | D44: 1.0166 | E44: 0.9294 | F44: 165603.8222 | G44: 168352.8456 | H44: 153912.1924
B45: Peak > 1.4 | C45: Peak > 1.4 | D45: 0.3812 | E45: 0.3485 | F45: 364941.066 | G45: 139115.5344 | H45: 127181.9615
B46: Off Peak 0 - 0.1 | C46: Off Peak 0 - 0.1 | D46: 0.9047 | E46: 0.8271 | F46: 78897.44767 | G46: 71378.52091 | H46: 65256.07897
B47: Off Peak 0.1 - 0.2 | C47: Off Peak 0.1 - 0.2 | D47: 0.7622 | E47: 0.6968 | F47: 52272.50351 | G47: 39842.10217 | H47: 36423.48044
B48: Off Peak 0.2 - 1.4 | C48: Off Peak 0.2 - 1.4 | D48: 0.3672 | E48: 0.3357 | F48: 277192.2656 | G48: 101784.9999 | H48: 93053.44358
B49: Off Peak > 1.4 | C49: Off Peak > 1.4 | D49: 0.2731 | E49: 0.2497 | F49: 484525.17 | G49: 132323.8239 | H49: 120985.935
B50: Tariff V - Adjoining Central Zone - Domestic | C50: Tariff V - Adjoining Central Zone - Domestic
B52: Fixed Charge | C52: Fixed Charge | D52: 0.4942 | E52: 0.4706 | F52: 2381.992371 | G52: =D52*$F52*365 -> 429670.9299 | H52: =E52*$F52*365 -> 409152.4476
B53: Peak 0 - 0.1 | C53: Peak 0 - 0.1 | D53: 11.6142 | E53: 10.6179 | F53: 18506.23776 | G53: =D53*$F53 -> 214935.1466 | H53: 196497.382
B54: Peak 0.1 - 0.2 | C54: Peak 0.1 - 0.2 | D54: 8.37 | E54: 7.652 | F54: 11369.77547 | G54: 95165.02069 | H54: 87001.52191
B55: Peak 0.2 - 1.4 | C55: Peak 0.2 - 1.4 | D55: 2.9812 | E55: 2.7255 | F55: 14718.78974 | G55: 43879.65597 | H55: 40116.06143
B56: Peak > 1.4 | C56: Peak > 1.4 | D56: 2.8587 | E56: 2.6135 | F56: 550.6742761 | G56: 1574.212553 | H56: 1439.187221
B57: Off Peak 0 - 0.1 | C57: Off Peak 0 - 0.1 | D57: 5.2014 | E57: 4.7552 | F57: 27233.56903 | G57: 141652.686 | H57: 129501.0675
B58: Off Peak 0.1 - 0.2 | C58: Off Peak 0.1 - 0.2 | D58: 3.0165 | E58: 2.7577 | F58: 8013.407051 | G58: 24172.44237 | H58: 22098.57262
B59: Off Peak 0.2 - 1.4 | C59: Off Peak 0.2 - 1.4 | D59: 2.6247 | E59: 2.3995 | F59: 7287.282023 | G59: 19126.92913 | H59: 17485.83322
B60: Off Peak > 1.4 | C60: Off Peak > 1.4 | D60: 2.5241 | E60: 2.3076 | F60: 534.6238931 | G60: 1349.444169 | H60: 1233.698096
B61: Tariff V - Adjoining Central Zone - Non-domestic | C61: Tariff V - Adjoining Central Zone - Non-domestic
B63: Fixed Charge | C63: Fixed Charge | D63: 0.516 | E63: 0.4913 | F63: 27.43509423 | G63: =D63*$F63*365 -> 5167.125646 | H63: =E63*$F63*365 -> 4919.784554
B64: Peak 0 - 0.1 | C64: Peak 0 - 0.1 | D64: 4.7753 | E64: 4.3657 | F64: 237.1753811 | G64: =D64*$F64 -> 1132.583597 | H64: 1035.436561
B65: Peak 0.1 - 0.2 | C65: Peak 0.1 - 0.2 | D65: 4.5506 | E65: 4.1602 | F65: 177.518264 | G65: 807.8146123 | H65: 738.5114821
B66: Peak 0.2 - 1.4 | C66: Peak 0.2 - 1.4 | D66: 4.3017 | E66: 3.9327 | F66: 935.7350279 | G66: 4025.251369 | H66: 3679.965144
B67: Peak > 1.4 | C67: Peak > 1.4 | D67: 4.0629 | E67: 3.7144 | F67: 340.230827 | G67: 1382.323827 | H67: 1263.753384
B68: Off Peak 0 - 0.1 | C68: Off Peak 0 - 0.1 | D68: 4.3957 | E68: 4.0186 | F68: 413.1701923 | G68: 1816.172214 | H68: 1660.365735
B69: Off Peak 0.1 - 0.2 | C69: Off Peak 0.1 - 0.2 | D69: 4.2196 | E69: 3.8576 | F69: 259.7413903 | G69: 1096.00477 | H69: 1001.978387
B70: Off Peak 0.2 - 1.4 | C70: Off Peak 0.2 - 1.4 | D70: 4.0889 | E70: 3.7381 | F70: 1633.722438 | G70: 6680.127677 | H70: 6107.017846
B71: Off Peak > 1.4 | C71: Off Peak > 1.4 | D71: 3.989 | E71: 3.6468 | F71: 752.2159794 | G71: 3000.589542 | H71: 2743.181234
B72: Tariff V - Adjoining West Zone - Domestic | C72: Tariff V - Adjoining West Zone - Domestic
B74: Fixed Charge | C74: Fixed Charge | D74: 0.4942 | E74: 0.4706 | F74: 14159.7453 | G74: =D74*$F74*365 -> 2554177.336 | H74: =E74*$F74*365 -> 2432205.29
B75: Peak 0 - 0.1 | C75: Peak 0 - 0.1 | D75: 8.1387 | E75: 7.4405 | F75: 109094.6347 | G75: =D75*$F75 -> 887888.5033 | H75: =E75*$F75 -> 811718.6294
B76: Peak 0.1 - 0.2 | C76: Peak 0.1 - 0.2 | D76: 6.8332 | E76: 6.247 | F76: 81697.87612 | G76: 558257.9271 | H76: 510366.6321
B77: Peak 0.2 - 1.4 | C77: Peak 0.2 - 1.4 | D77: 3.5068 | E77: 3.206 | F77: 144231.3418 | G77: 505790.4696 | H77: 462405.682
B78: Peak > 1.4 | C78: Peak > 1.4 | D78: 3.1454 | E78: 2.8756 | F78: 1956.432095 | G78: 6153.761512 | H78: 5625.916133
B79: Off Peak 0 - 0.1 | C79: Off Peak 0 - 0.1 | D79: 4.8296 | E79: 4.4153 | F79: 192439.4272 | G79: 929405.4578 | H79: 849677.8031
B80: Off Peak 0.1 - 0.2 | C80: Off Peak 0.1 - 0.2 | D80: 3.6526 | E80: 3.3393 | F80: 72478.83923 | G80: 264736.2082 | H80: 242028.5878
B81: Off Peak 0.2 - 1.4 | C81: Off Peak 0.2 - 1.4 | D81: 2.6154 | E81: 2.391 | F81: 59898.4194 | G81: 156658.3261 | H81: 143217.1208
B82: Off Peak > 1.4 | C82: Off Peak > 1.4 | D82: 2.5335 | E82: 2.3162 | F82: 2618.318134 | G82: 6633.508993 | H82: 6064.548462
B83: Tariff V - Adjoining West Zone - Non-domestic | C83: Tariff V - Adjoining West Zone - Non-domestic
B85: Fixed Charge | C85: Fixed Charge | D85: 0.516 | E85: 0.4913 | F85: 337.0719065 | G85: =D85*$F85*365 -> 63484.12286 | H85: =E85*$F85*365 -> 60445.25109
B86: Peak 0 - 0.1 | C86: Peak 0 - 0.1 | D86: 5.8928 | E86: 5.3873 | F86: 2557.857696 | G86: =D86*$F86 -> 15072.94383 | H86: =E86*$F86 -> 13779.94677
B87: Peak 0.1 - 0.2 | C87: Peak 0.1 - 0.2 | D87: 5.5314 | E87: 5.0569 | F87: 1990.267409 | G87: 11008.96515 | H87: 10064.58326
B88: Peak 0.2 - 1.4 | C88: Peak 0.2 - 1.4 | D88: 4.751 | E88: 4.3434 | F88: 11676.90916 | G88: 55476.99542 | H88: 50717.48724
B89: Peak > 1.4 | C89: Peak > 1.4 | D89: 4.1761 | E89: 3.8179 | F89: 23760.91972 | G89: 99227.97685 | H89: 90716.8154
B90: Off Peak 0 - 0.1 | C90: Off Peak 0 - 0.1 | D90: 4.5302 | E90: 4.1416 | F90: 5620.049989 | G90: 25459.95046 | H90: 23275.99903
B91: Off Peak 0.1 - 0.2 | C91: Off Peak 0.1 - 0.2 | D91: 4.3104 | E91: 3.9406 | F91: 4061.742118 | G91: 17507.73322 | H91: 16005.70099
B92: Off Peak 0.2 - 1.4 | C92: Off Peak 0.2 - 1.4 | D92: 3.7683 | E92: 3.445 | F92: 22996.02145 | G92: 86655.90763 | H92: 79221.2939
B93: Off Peak > 1.4 | C93: Off Peak > 1.4 | D93: 3.5884 | E93: 3.2806 | F93: 34043.04988 | G93: 122160.0802 | H93: 111681.6294
B95: Tariff M - Central Zone | C95: Tariff M - Central Zone
B96: 0 - 10 | C96: 0 - 10 | D96: 802.687 | E96: 752.2987 | F96: 150.0675 | G96: =D96*$F96 -> 120457.2314 | H96: 112895.5852
B97: 10 - 50 | C97: 10 - 50 | D97: 764.4925 | E97: 716.5018 | F97: 18.88916667 | G97: 14440.62625 | H97: 13534.12192
B98: > 50 | C98: > 50 | D98: 159.6277 | E98: 149.6071 | F98: 0 | G98: 0 | H98: 0
B100: Tariff M - West Zone | C100: Tariff M - West Zone
B101: 0 - 10 | C101: 0 - 10 | D101: 802.687 | E101: 752.2987 | F101: 60.63333333 | G101: =D101*$F101 -> 48669.58843 | H101: 45614.37784
B102: 10 - 50 | C102: 10 - 50 | D102: 764.4925 | E102: 716.5018 | F102: 27.125 | G102: 20736.85906 | H102: 19435.11133
B103: > 50 | C103: > 50 | D103: 159.6277 | E103: 149.6071 | F103: 0 | G103: 0 | H103: 0
B105: Tariff M - Adjoining Central Zone | C105: Tariff M - Adjoining Central Zone
B106: 0 - 10 | C106: 0 - 10 | D106: 802.687 | E106: 752.2987 | F106: 0 | G106: =D106*$F106 -> 0 | H106: 0
B107: 10 - 50 | C107: 10 - 50 | D107: 764.4925 | E107: 716.5018 | F107: 0 | G107: 0 | H107: 0
B108: > 50 | C108: > 50 | D108: 159.6277 | E108: 149.6071 | F108: 0 | G108: 0 | H108: 0
B110: Tariff M - Adjoining West Zone | C110: Tariff M - Adjoining West Zone
B111: 0 - 10 | C111: 0 - 10 | D111: 802.687 | E111: 752.2987 | F111: 0 | G111: =D111*$F111 -> 0 | H111: 0
B112: 10 - 50 | C112: 10 - 50 | D112: 764.4925 | E112: 716.5018 | F112: 0 | G112: 0 | H112: 0
B113: > 50 | C113: > 50 | D113: 159.6277 | E113: 149.6071 | F113: 0 | G113: 0 | H113: 0
B116: Tariff D - Central Zone | C116: Tariff D - Central Zone
B117: 0 - 10 | C117: 0 - 10 | D117: 366.1673 | E117: 343.1813 | F117: 1130.8475 | G117: =D117*$F117 -> 414079.3758 | H117: 388085.7152
B118: 10 - 50 | C118: 10 - 50 | D118: 348.7336 | E118: 326.842 | F118: 1412.6975 | G118: 492655.0849 | H118: 461728.8763
B119: > 50 | C119: > 50 | D119: 169.3145 | E119: 158.6859 | F119: 2395.964167 | G119: =D119*$F119 -> 405671.4749 | H119: =E119*$F119 -> 380205.7302
B121: Tariff D - West Zone | C121: Tariff D - West Zone
B122: 0 - 10 | C122: 0 - 10 | D122: 366.1673 | E122: 343.1813 | F122: 484.3966667 | G122: =D122*$F122 -> 177370.2196 | H122: 166235.8778
B123: 10 - 50 | C123: 10 - 50 | D123: 348.7336 | E123: 326.842 | F123: 632.2758333 | G123: 220495.8276 | H123: 206654.2979
B124: > 50 | C124: > 50 | D124: 169.3145 | E124: 158.6859 | F124: 297.1141667 | G124: 50305.73657 | H124: 47147.82894
B126: Tariff D - Adjoining Central Zone | C126: Tariff D - Adjoining Central Zone
B127: 0 - 10 | C127: 0 - 10 | D127: 366.1673 | E127: 343.1813 | F127: 10 | G127: =D127*$F127 -> 3661.673 | H127: 3431.813
B128: 10 - 50 | C128: 10 - 50 | D128: 348.7336 | E128: 326.842 | F128: 17.77833333 | G128: =D128*$F128 -> 6199.902185 | H128: 5810.706023
B129: > 50 | C129: > 50 | D129: 169.3145 | E129: 158.6859 | F129: 0 | G129: 0 | H129: 0
B131: Tariff D - Adjoining West Zone | C131: Tariff D - Adjoining West Zone
B132: 0 - 10 | C132: 0 - 10 | D132: 366.1673 | E132: 343.1813 | F132: 11.57583333 | G132: =D132*$F132 -> 4238.691637 | H132: 3972.609532
B133: 10 - 50 | C133: 10 - 50 | D133: 348.7336 | E133: 326.842 | F133: 4.160833333 | G133: 1451.022387 | H133: 1359.935088
B134: > 50 | C134: > 50 | D134: 169.3145 | E134: 158.6859 | F134: 0 | G134: 0 | H134: 0
B137: Total Revenue | C137: Total Revenue | G137: =SUM(G8:G135) -> 236366963.5 | H137: =SUM(H8:H135) -> 221529430.7

Sheet 2024-25TarContForm
B1: ="Tariff Approval - "&'Model update'!B3 -> Tariff Approval - AusNet Services | F1: ='Model update'!B5&"TarContForm" -> 2024-25TarContForm
B3: ='Model update'!$B$5&" TARIFF CONTROL FORMULA" -> 2024-25 TARIFF CONTROL FORMULA
B6: Adjustments | F6: Denominators for adjustment factors
B9: CPI | C9: ='Model update'!B31 -> 0.04051987768
B10: X-factor | C10: ='Model update'!B40 -> -0.02411520204
B11: Pass-through Amount | C11: ='Model update'!H23 -> 0 | G11: =(1+C9)*(1-C10)*C23 -> 236064469.5
B12: Safeguard Mechanism Amount | C12: ='Model update'!H36 -> 0.001051692488 | G12: =(1+C9)*(1-C10)*(1+C11)*(1+0)*C23 -> 236064469.5
B13: Abolishment True-up Amount | C13: ='Model update'!H49 -> 0.0002307987237 | G13: =(1+C9)*(1-C10)*(1+C11)*(1+C12)*C23 -> 236312736.7
B18: ='Model update'!$B$5&" Distribution price control" -> 2024-25 Distribution price control
B20: Average price movement allowed | C20: =(1+C9)*(1-C10)*(1+C11)*(1+C12)*(1+C13) -> 1.066979122
B22: Proposed distribution tariff revenue | C22: =IF('Prop2024-25DistTar'!G137=0,"",'Prop2024-25DistTar'!G137) -> 236366963.5
B23: Existing distribution tariff revenue | C23: =IF('Prop2024-25DistTar'!H137=0,"",'Prop2024-25DistTar'!H137) -> 221529430.7
B24: Average price movement | C24: =IF(C22="","",C22/C23) -> 1.066977705
B26: =IF(C22="","",IF(C20>=C24,"DISTRIBUTION PRICE CONTROL FORMULA COMPLIANT","DISTRIBUTION PRICE CONTROL FORMULA BREACHED")) -> DISTRIBUTION PRICE CONTROL FORMULA COMPLIANT

Sheet 2024-25RebalContForm
B1: ="Tariff Approval - "&'Model update'!B3 -> Tariff Approval - AusNet Services | C1: ='Model update'!B5&"RebalContForm" -> 2024-25RebalContForm
B3: ='Model update'!$B$5&" REBALANCING CONTROL FORMULA" -> 2024-25 REBALANCING CONTROL FORMULA
B6: Rebalancing control
B8: ='2024-25TarContForm'!B9 -> CPI | C8: ='2024-25TarContForm'!C9 -> 0.04051987768
B9: ='2024-25TarContForm'!B10 -> X-factor | C9: ='2024-25TarContForm'!C10 -> -0.02411520204
B10: ='2024-25TarContForm'!B11 -> Pass-through Amount | C10: ='2024-25TarContForm'!C11 -> 0
B11: ='2024-25TarContForm'!B12 -> Safeguard Mechanism Amount | C11: ='2024-25TarContForm'!C12 -> 0.001051692488
B12: ='2024-25TarContForm'!B13 -> Abolishment True-up Amount | C12: ='2024-25TarContForm'!C13 -> 0.0002307987237
B13: Y factor | C13: 0.02
B15: Rebalancing control | C15: =(1+C8)*(1-C9)*(1+C10)*(1+C11)*(1+C13) -> 1.08806758 | F15: The abolishment true-up amount is not accounted for under the mechanism in the AA.
B19: Rebalancing control summary
C20: Existing | D20: Proposed | E20: Movement | F20: Assessment
B21: =B41 -> Tariff V - Central Zone - Domestic | C21: =C62 -> 168845066.4 | D21: =C63 -> 180213139.5 | E21: =IF(C21=0,0,D21/C21) -> 1.067328429 | F21: =IF(E21=0,"",IF($C$15<=E21,"Breached","Compliant")) -> Compliant
B22: =B71 -> Tariff V - West Zone - Domestic | C22: =C92 -> 36972148.23 | D22: =C93 -> 39282076.62 | E22: 1.062477527 | F22: =IF(E22=0,"",IF($C$15<=E22,"Breached","Compliant")) -> Compliant
B23: =B101 -> Tariff V - Adjoining Central Zone - Domestic | C23: =C122 -> 904525.7715 | D23: =C123 -> 971526.4674 | E23: 1.074072733 | F23: Compliant
B24: =B131 -> Tariff V - Adjoining West Zone - Domestic | C24: =C152 -> 5463310.21 | D24: =C153 -> 5869701.498 | E24: 1.074385542 | F24: Compliant
B25: =B161 -> Tariff V - Central Zone - Non-domestic | C25: =C182 -> 5163055.839 | D25: =C183 -> 5558916.884 | E25: 1.07667185 | F25: Compliant
B26: =B191 -> Tariff V - West Zone - Non-domestic | C26: =C212 -> 1846152.933 | D26: =C213 -> 1970006.551 | E26: 1.06708741 | F26: Compliant
B27: =B221 -> Tariff V - Adjoining Central Zone - Non-domestic | C27: =C242 -> 23149.99433 | D27: =C243 -> 25107.99326 | E27: 1.084578808 | F27: Compliant
B28: =B251 -> Tariff V - Adjoining West Zone - Non-domestic | C28: =C272 -> 455908.7071 | D28: =C273 -> 496054.6756 | E28: =IF(C28=0,0,D28/C28) -> 1.088057034 | F28: =IF(E28=0,"",IF($C$15<=E28,"Breached","Compliant")) -> Compliant
B29: =B281 -> Tariff M - Central Zone | C29: =C296 -> 126429.7071 | D29: =C297 -> 134897.8576 | E29: 1.06697912 | F29: Compliant
B30: =B305 -> Tariff M - West Zone | C30: =C320 -> 65049.48917 | D30: =C321 -> 69406.4475 | E30: 1.066979132 | F30: Compliant
B31: =B329 -> Tariff M - Adjoining Central Zone | C31: =C344 -> 0 | D31: =C345 -> 0 | E31: =IF(C31=0,0,D31/C31) -> 0 | F31: =IF(E31=0,"",IF($C$15<=E31,"Breached","Compliant")) -> 
B32: =B353 -> Tariff M - Adjoining West Zone | C32: =C368 -> 0 | D32: =C369 -> 0 | E32: 0
B33: =B377 -> Tariff D - Central Zone | C33: =C392 -> 1230020.322 | D33: =C393 -> 1312405.936 | E33: =IF(C33=0,0,D33/C33) -> 1.066979067 | F33: =IF(E33=0,"",IF($C$15<=E33,"Breached","Compliant")) -> Compliant
B34: =B401 -> Tariff D - West Zone | C34: =C416 -> 420038.0046 | D34: =C417 -> 448171.7837 | E34: 1.066979127 | F34: Compliant
B35: =B425 -> Tariff D - Adjoining Central Zone | C35: =C440 -> 9242.519023 | D35: =C441 -> 9861.575185 | E35: 1.06697916 | F35: Compliant
B36: =B449 -> Tariff D - Adjoining West Zone | C36: =C464 -> 5332.54462 | D36: =C465 -> 5689.714024 | E36: 1.066979168 | F36: Compliant
C37: =SUM(C21:C36) -> 221529430.7 | D37: =SUM(D21:D36) -> 236366963.5 | E37: 1.066977705
B41: ='Prop2024-25DistTar'!B6 -> Tariff V - Central Zone - Domestic | C41: 1 | D41: 2 | E41: 3 | F41: 4 | G41: 5 | H41: 6 | I41: 7 | J41: 8 | K41: 9
C42: 1 | D42: 2 | E42: 3 | F42: 4 | G42: 5 | H42: 6 | I42: 7 | J42: 8 | K42: 9
B43: Distribution tariff | C43: Fixed | D43: PkBlk1 | E43: PkBlk2 | F43: PkBlk3 | G43: PkBlk4 | H43: OPkBlk1 | I43: OPkBlk2 | J43: OPkBlk3 | K43: OPkBlk4
B45: ="Existing : "&'Prop2024-25DistTar'!C6 -> Existing : Tariff V - Central Zone - Domestic | C45: =INDEX('Prop2024-25DistTar'!$E$8:$E$16,C$42) -> 0.4706 | D45: =INDEX('Prop2024-25DistTar'!$E$8:$E$16,D$42) -> 6.4835 | E45: =INDEX('Prop2024-25DistTar'!$E$8:$E$16,E$42) -> 3.9077 | F45: =INDEX('Prop2024-25DistTar'!$E$8:$E$16,F$42) -> 0.6794 | G45: =INDEX('Prop2024-25DistTar'!$E$8:$E$16,G$42) -> 0.6103 | H45: =INDEX('Prop2024-25DistTar'!$E$8:$E$16,H$42) -> 2.1977 | I45: =INDEX('Prop2024-25DistTar'!$E$8:$E$16,I$42) -> 1.7367 | J45: =INDEX('Prop2024-25DistTar'!$E$8:$E$16,J$42) -> 0.6656 | K45: =INDEX('Prop2024-25DistTar'!$E$8:$E$16,K$42) -> 0.2361
B47: ="Proposed : "&B41 -> Proposed : Tariff V - Central Zone - Domestic | C47: =INDEX('Prop2024-25DistTar'!$D$8:$D$16,C$41) -> 0.4942 | D47: =INDEX('Prop2024-25DistTar'!$D$8:$D$16,D$41) -> 7.0919 | E47: =INDEX('Prop2024-25DistTar'!$D$8:$D$16,E$41) -> 4.2744 | F47: =INDEX('Prop2024-25DistTar'!$D$8:$D$16,F$41) -> 0.7431 | G47: =INDEX('Prop2024-25DistTar'!$D$8:$D$16,G$41) -> 0.6676 | H47: =INDEX('Prop2024-25DistTar'!$D$8:$D$16,H$41) -> 2.4039 | I47: =INDEX('Prop2024-25DistTar'!$D$8:$D$16,I$41) -> 1.8997 | J47: =INDEX('Prop2024-25DistTar'!$D$8:$D$16,J$41) -> 0.7281 | K47: =INDEX('Prop2024-25DistTar'!$D$8:$D$16,K$41) -> 0.2583
B49: Distribution volumes (actual) | C49: =C$43 -> Fixed | D49: =D$43 -> PkBlk1 | E49: PkBlk2 | F49: PkBlk3 | G49: PkBlk4 | H49: OPkBlk1 | I49: OPkBlk2 | J49: OPkBlk3 | K49: OPkBlk4
B51: =B45 -> Existing : Tariff V - Central Zone - Domestic | C51: =INDEX('Prop2024-25DistTar'!$F$8:$F$16,C$41) -> 596408.5466 | D51: =INDEX('Prop2024-25DistTar'!$F$8:$F$16,D$41) -> 4565205.316 | E51: =INDEX('Prop2024-25DistTar'!$F$8:$F$16,E$41) -> 2974213.117 | F51: =INDEX('Prop2024-25DistTar'!$F$8:$F$16,F$41) -> 4297336.978 | G51: =INDEX('Prop2024-25DistTar'!$F$8:$F$16,G$41) -> 44764.02677 | H51: =INDEX('Prop2024-25DistTar'!$F$8:$F$16,H$41) -> 7981395.107 | I51: =INDEX('Prop2024-25DistTar'!$F$8:$F$16,I$41) -> 2139042.662 | J51: =INDEX('Prop2024-25DistTar'!$F$8:$F$16,J$41) -> 1445615.067 | K51: =INDEX('Prop2024-25DistTar'!$F$8:$F$16,K$41) -> 63559.90267
B53: =B47 -> Proposed : Tariff V - Central Zone - Domestic | C53: =INDEX('Prop2024-25DistTar'!$F$8:$F$16,C$41) -> 596408.5466 | D53: =INDEX('Prop2024-25DistTar'!$F$8:$F$16,D$41) -> 4565205.316 | E53: =INDEX('Prop2024-25DistTar'!$F$8:$F$16,E$41) -> 2974213.117 | F53: =INDEX('Prop2024-25DistTar'!$F$8:$F$16,F$41) -> 4297336.978 | G53: =INDEX('Prop2024-25DistTar'!$F$8:$F$16,G$41) -> 44764.02677 | H53: =INDEX('Prop2024-25DistTar'!$F$8:$F$16,H$41) -> 7981395.107 | I53: =INDEX('Prop2024-25DistTar'!$F$8:$F$16,I$41) -> 2139042.662 | J53: =INDEX('Prop2024-25DistTar'!$F$8:$F$16,J$41) -> 1445615.067 | K53: =INDEX('Prop2024-25DistTar'!$F$8:$F$16,K$41) -> 63559.90267
B55: Distribution revenue | C55: =C$43 -> Fixed | D55: PkBlk1 | E55: PkBlk2 | F55: PkBlk3 | G55: PkBlk4 | H55: OPkBlk1 | I55: OPkBlk2 | J55: OPkBlk3 | K55: OPkBlk4
B57: =B51 -> Existing : Tariff V - Central Zone - Domestic | C57: =INDEX('Prop2024-25DistTar'!$H$8:$H$16,C$42) -> 102444499.6 | D57: =INDEX('Prop2024-25DistTar'!$H$8:$H$16,D$42) -> 29598508.67 | E57: =INDEX('Prop2024-25DistTar'!$H$8:$H$16,E$42) -> 11622332.6 | F57: =INDEX('Prop2024-25DistTar'!$H$8:$H$16,F$42) -> 2919610.743 | G57: =INDEX('Prop2024-25DistTar'!$H$8:$H$16,G$42) -> 27319.48554 | H57: =INDEX('Prop2024-25DistTar'!$H$8:$H$16,H$42) -> 17540712.03 | I57: =INDEX('Prop2024-25DistTar'!$H$8:$H$16,I$42) -> 3714875.391 | J57: =INDEX('Prop2024-25DistTar'!$H$8:$H$16,J$42) -> 962201.3887 | K57: =INDEX('Prop2024-25DistTar'!$H$8:$H$16,K$42) -> 15006.49302
B59: =B53 -> Proposed : Tariff V - Central Zone - Domestic | C59: =INDEX('Prop2024-25DistTar'!$G$8:$G$16,C$41) -> 107581962.9 | D59: =INDEX('Prop2024-25DistTar'!$G$8:$G$16,D$41) -> 32375979.58 | E59: =INDEX('Prop2024-25DistTar'!$G$8:$G$16,E$41) -> 12712976.55 | F59: =INDEX('Prop2024-25DistTar'!$G$8:$G$16,F$41) -> 3193351.108 | G59: =INDEX('Prop2024-25DistTar'!$G$8:$G$16,G$41) -> 29884.46427 | H59: =INDEX('Prop2024-25DistTar'!$G$8:$G$16,H$41) -> 19186475.7 | I59: =INDEX('Prop2024-25DistTar'!$G$8:$G$16,I$41) -> 4063539.345 | J59: =INDEX('Prop2024-25DistTar'!$G$8:$G$16,J$41) -> 1052552.33 | K59: =INDEX('Prop2024-25DistTar'!$G$8:$G$16,K$41) -> 16417.52286
B61: Revenue | C61: Total
B62: =B57 -> Existing : Tariff V - Central Zone - Domestic | C62: =SUM(C57:K57) -> 168845066.4
B63: =B59 -> Proposed : Tariff V - Central Zone - Domestic | C63: =SUM(C59:K59) -> 180213139.5
B65: Average price movement | C65: =IF(C63=0,"",C63/C62) -> 1.067328429
B67: =IF(C65="","",IF(C65<=$C$15,"REBALANCING CONTROL COMPLIANT","REBALANCING CONTROL BREACHED")) -> REBALANCING CONTROL COMPLIANT
B71: ='Prop2024-25DistTar'!B28 -> Tariff V - West Zone - Domestic | C71: 1 | D71: 2 | E71: 3 | F71: 4 | G71: 5 | H71: 6 | I71: 7 | J71: 8 | K71: 9
C72: 1 | D72: 2 | E72: 3 | F72: 4 | G72: 5 | H72: 6 | I72: 7 | J72: 8 | K72: 9
B73: Distribution tariff | C73: Fixed | D73: PkBlk1 | E73: PkBlk2 | F73: PkBlk3 | G73: PkBlk4 | H73: OPkBlk1 | I73: OPkBlk2 | J73: OPkBlk3 | K73: OPkBlk4
B75: ="Existing : "&'Prop2024-25DistTar'!C28 -> Existing : Tariff V - West Zone - Domestic | C75: =INDEX('Prop2024-25DistTar'!$E$30:$E$38,C$42) -> 0.4706 | D75: =INDEX('Prop2024-25DistTar'!$E$30:$E$38,D$42) -> 3.427 | E75: =INDEX('Prop2024-25DistTar'!$E$30:$E$38,E$42) -> 2.4676 | F75: =INDEX('Prop2024-25DistTar'!$E$30:$E$38,F$42) -> 0.7971 | G75: =INDEX('Prop2024-25DistTar'!$E$30:$E$38,G$42) -> 0.764 | H75: =INDEX('Prop2024-25DistTar'!$E$30:$E$38,H$42) -> 1.0596 | I75: =INDEX('Prop2024-25DistTar'!$E$30:$E$38,I$42) -> 0.993 | J75: =INDEX('Prop2024-25DistTar'!$E$30:$E$38,J$42) -> 0.5662 | K75: =INDEX('Prop2024-25DistTar'!$E$30:$E$38,K$42) -> 0.1117
B77: ="Proposed : "&B71 -> Proposed : Tariff V - West Zone - Domestic | C77: =INDEX('Prop2024-25DistTar'!$D$30:$D$38,C$41) -> 0.4942 | D77: =INDEX('Prop2024-25DistTar'!$D$30:$D$38,D$41) -> 3.7486 | E77: =INDEX('Prop2024-25DistTar'!$D$30:$D$38,E$41) -> 2.6991 | F77: =INDEX('Prop2024-25DistTar'!$D$30:$D$38,F$41) -> 0.8719 | G77: =INDEX('Prop2024-25DistTar'!$D$30:$D$38,G$41) -> 0.8357 | H77: =INDEX('Prop2024-25DistTar'!$D$30:$D$38,H$41) -> 1.159 | I77: =INDEX('Prop2024-25DistTar'!$D$30:$D$38,I$41) -> 1.0862 | J77: =INDEX('Prop2024-25DistTar'!$D$30:$D$38,J$41) -> 0.6193 | K77: =INDEX('Prop2024-25DistTar'!$D$30:$D$38,K$41) -> 0.1222
B79: Distribution volumes (actual) | C79: Fixed | D79: PkBlk1 | E79: PkBlk2 | F79: PkBlk3 | G79: PkBlk4 | H79: PkBlk5 | I79: Shd1Blk1 | J79: Shd1Blk2 | K79: Shd1Blk3
B81: =B75 -> Existing : Tariff V - West Zone - Domestic | C81: =INDEX('Prop2024-25DistTar'!$F$30:$F$38,C$41) -> 154491.291 | D81: =INDEX('Prop2024-25DistTar'!$F$30:$F$38,D$41) -> 1212721.601 | E81: =INDEX('Prop2024-25DistTar'!$F$30:$F$38,E$41) -> 843491.0351 | F81: =INDEX('Prop2024-25DistTar'!$F$30:$F$38,F$41) -> 1243315.019 | G81: =INDEX('Prop2024-25DistTar'!$F$30:$F$38,G$41) -> 8182.359366 | H81: =INDEX('Prop2024-25DistTar'!$F$30:$F$38,H$41) -> 2101963.744 | I81: =INDEX('Prop2024-25DistTar'!$F$30:$F$38,I$41) -> 687337.4241 | J81: =INDEX('Prop2024-25DistTar'!$F$30:$F$38,J$41) -> 511727.7111 | K81: =INDEX('Prop2024-25DistTar'!$F$30:$F$38,K$41) -> 10147.40189
B83: =B77 -> Proposed : Tariff V - West Zone - Domestic | C83: =INDEX('Prop2024-25DistTar'!$F$30:$F$38,C$41) -> 154491.291 | D83: =INDEX('Prop2024-25DistTar'!$F$30:$F$38,D$41) -> 1212721.601 | E83: =INDEX('Prop2024-25DistTar'!$F$30:$F$38,E$41) -> 843491.0351 | F83: =INDEX('Prop2024-25DistTar'!$F$30:$F$38,F$41) -> 1243315.019 | G83: =INDEX('Prop2024-25DistTar'!$F$30:$F$38,G$41) -> 8182.359366 | H83: =INDEX('Prop2024-25DistTar'!$F$30:$F$38,H$41) -> 2101963.744 | I83: =INDEX('Prop2024-25DistTar'!$F$30:$F$38,I$41) -> 687337.4241 | J83: =INDEX('Prop2024-25DistTar'!$F$30:$F$38,J$41) -> 511727.7111 | K83: =INDEX('Prop2024-25DistTar'!$F$30:$F$38,K$41) -> 10147.40189
B85: Distribution revenue | C85: Fixed | D85: PkBlk1 | E85: PkBlk2 | F85: PkBlk3 | G85: PkBlk4 | H85: PkBlk5 | I85: Shd1Blk1 | J85: Shd1Blk2 | K85: Shd1Blk3
B87: =B81 -> Existing : Tariff V - West Zone - Domestic | C87: =INDEX('Prop2024-25DistTar'!$H$30:$H$38,C$42) -> 26536814.56 | D87: =INDEX('Prop2024-25DistTar'!$H$30:$H$38,D$42) -> 4155996.927 | E87: =INDEX('Prop2024-25DistTar'!$H$30:$H$38,E$42) -> 2081398.478 | F87: =INDEX('Prop2024-25DistTar'!$H$30:$H$38,F$42) -> 991046.4016 | G87: =INDEX('Prop2024-25DistTar'!$H$30:$H$38,G$42) -> 6251.322556 | H87: =INDEX('Prop2024-25DistTar'!$H$30:$H$38,H$42) -> 2227240.783 | I87: =INDEX('Prop2024-25DistTar'!$H$30:$H$38,I$42) -> 682526.0621 | J87: =INDEX('Prop2024-25DistTar'!$H$30:$H$38,J$42) -> 289740.2301 | K87: =INDEX('Prop2024-25DistTar'!$H$30:$H$38,K$42) -> 1133.464791
B89: =B83 -> Proposed : Tariff V - West Zone - Domestic | C89: =INDEX('Prop2024-25DistTar'!$G$30:$G$38,C$41) -> 27867602.54 | D89: =INDEX('Prop2024-25DistTar'!$G$30:$G$38,D$41) -> 4546008.194 | E89: =INDEX('Prop2024-25DistTar'!$G$30:$G$38,E$41) -> 2276666.653 | F89: =INDEX('Prop2024-25DistTar'!$G$30:$G$38,F$41) -> 1084046.365 | G89: =INDEX('Prop2024-25DistTar'!$G$30:$G$38,G$41) -> 6837.997722 | H89: =INDEX('Prop2024-25DistTar'!$G$30:$G$38,H$41) -> 2436175.979 | I89: =INDEX('Prop2024-25DistTar'!$G$30:$G$38,I$41) -> 746585.91 | J89: =INDEX('Prop2024-25DistTar'!$G$30:$G$38,J$41) -> 316912.9715 | K89: =INDEX('Prop2024-25DistTar'!$G$30:$G$38,K$41) -> 1240.012511
B91: Revenue | C91: Total
B92: =B87 -> Existing : Tariff V - West Zone - Domestic | C92: =SUM(C87:K87) -> 36972148.23
B93: =B89 -> Proposed : Tariff V - West Zone - Domestic | C93: =SUM(C89:K89) -> 39282076.62
B95: Average price movement | C95: =IF(C93=0,"",C93/C92) -> 1.062477527
B97: =IF(C95="","",IF(C95<=$C$15,"REBALANCING CONTROL COMPLIANT","REBALANCING CONTROL BREACHED")) -> REBALANCING CONTROL COMPLIANT
B101: ='Prop2024-25DistTar'!B50 -> Tariff V - Adjoining Central Zone - Domestic | C101: 1 | D101: 2 | E101: 3 | F101: 4 | G101: 5 | H101: 6 | I101: 7 | J101: 8 | K101: 9
C102: 1 | D102: 2 | E102: 3 | F102: 4 | G102: 5 | H102: 6 | I102: 7 | J102: 8 | K102: 9
B103: Distribution tariff | C103: Fixed | D103: PkBlk1 | E103: PkBlk2 | F103: PkBlk3 | G103: PkBlk4 | H103: OPkBlk1 | I103: OPkBlk2 | J103: OPkBlk3 | K103: OPkBlk4
B105: ="Existing : "&'Prop2024-25DistTar'!C50 -> Existing : Tariff V - Adjoining Central Zone - Domestic | C105: =INDEX('Prop2024-25DistTar'!$E$52:$E$60,C$42) -> 0.4706 | D105: =INDEX('Prop2024-25DistTar'!$E$52:$E$60,D$42) -> 10.6179 | E105: =INDEX('Prop2024-25DistTar'!$E$52:$E$60,E$42) -> 7.652 | F105: =INDEX('Prop2024-25DistTar'!$E$52:$E$60,F$42) -> 2.7255 | G105: =INDEX('Prop2024-25DistTar'!$E$52:$E$60,G$42) -> 2.6135 | H105: =INDEX('Prop2024-25DistTar'!$E$52:$E$60,H$42) -> 4.7552 | I105: =INDEX('Prop2024-25DistTar'!$E$52:$E$60,I$42) -> 2.7577 | J105: =INDEX('Prop2024-25DistTar'!$E$52:$E$60,J$42) -> 2.3995 | K105: =INDEX('Prop2024-25DistTar'!$E$52:$E$60,K$42) -> 2.3076
B107: ="Proposed : "&B101 -> Proposed : Tariff V - Adjoining Central Zone - Domestic | C107: =INDEX('Prop2024-25DistTar'!$D$52:$D$60,C$41) -> 0.4942 | D107: =INDEX('Prop2024-25DistTar'!$D$52:$D$60,D$41) -> 11.6142 | E107: =INDEX('Prop2024-25DistTar'!$D$52:$D$60,E$41) -> 8.37 | F107: =INDEX('Prop2024-25DistTar'!$D$52:$D$60,F$41) -> 2.9812 | G107: =INDEX('Prop2024-25DistTar'!$D$52:$D$60,G$41) -> 2.8587 | H107: =INDEX('Prop2024-25DistTar'!$D$52:$D$60,H$41) -> 5.2014 | I107: =INDEX('Prop2024-25DistTar'!$D$52:$D$60,I$41) -> 3.0165 | J107: =INDEX('Prop2024-25DistTar'!$D$52:$D$60,J$41) -> 2.6247 | K107: =INDEX('Prop2024-25DistTar'!$D$52:$D$60,K$41) -> 2.5241
B109: Distribution volumes (actual) | C109: Fixed | D109: PkBlk1 | E109: PkBlk2 | F109: PkBlk3 | G109: PkBlk4 | H109: PkBlk5 | I109: Shd1Blk1 | J109: Shd1Blk2 | K109: Shd1Blk3
B111: =B105 -> Existing : Tariff V - Adjoining Central Zone - Domestic | C111: =INDEX('Prop2024-25DistTar'!$F$52:$F$60,C$41) -> 2381.992371 | D111: =INDEX('Prop2024-25DistTar'!$F$52:$F$60,D$41) -> 18506.23776 | E111: =INDEX('Prop2024-25DistTar'!$F$52:$F$60,E$41) -> 11369.77547 | F111: =INDEX('Prop2024-25DistTar'!$F$52:$F$60,F$41) -> 14718.78974 | G111: =INDEX('Prop2024-25DistTar'!$F$52:$F$60,G$41) -> 550.6742761 | H111: =INDEX('Prop2024-25DistTar'!$F$52:$F$60,H$41) -> 27233.56903 | I111: =INDEX('Prop2024-25DistTar'!$F$52:$F$60,I$41) -> 8013.407051 | J111: =INDEX('Prop2024-25DistTar'!$F$52:$F$60,J$41) -> 7287.282023 | K111: =INDEX('Prop2024-25DistTar'!$F$52:$F$60,K$41) -> 534.6238931
B113: =B107 -> Proposed : Tariff V - Adjoining Central Zone - Domestic | C113: =INDEX('Prop2024-25DistTar'!$F$52:$F$60,C$41) -> 2381.992371 | D113: =INDEX('Prop2024-25DistTar'!$F$52:$F$60,D$41) -> 18506.23776 | E113: =INDEX('Prop2024-25DistTar'!$F$52:$F$60,E$41) -> 11369.77547 | F113: =INDEX('Prop2024-25DistTar'!$F$52:$F$60,F$41) -> 14718.78974 | G113: =INDEX('Prop2024-25DistTar'!$F$52:$F$60,G$41) -> 550.6742761 | H113: =INDEX('Prop2024-25DistTar'!$F$52:$F$60,H$41) -> 27233.56903 | I113: =INDEX('Prop2024-25DistTar'!$F$52:$F$60,I$41) -> 8013.407051 | J113: =INDEX('Prop2024-25DistTar'!$F$52:$F$60,J$41) -> 7287.282023 | K113: =INDEX('Prop2024-25DistTar'!$F$52:$F$60,K$41) -> 534.6238931
B115: Distribution revenue | C115: Fixed | D115: PkBlk1 | E115: PkBlk2 | F115: PkBlk3 | G115: PkBlk4 | H115: PkBlk5 | I115: Shd1Blk1 | J115: Shd1Blk2 | K115: Shd1Blk3
B117: =B111 -> Existing : Tariff V - Adjoining Central Zone - Domestic | C117: =INDEX('Prop2024-25DistTar'!$H$52:$H$60,C$42) -> 409152.4476 | D117: =INDEX('Prop2024-25DistTar'!$H$52:$H$60,D$42) -> 196497.382 | E117: =INDEX('Prop2024-25DistTar'!$H$52:$H$60,E$42) -> 87001.52191 | F117: =INDEX('Prop2024-25DistTar'!$H$52:$H$60,F$42) -> 40116.06143 | G117: =INDEX('Prop2024-25DistTar'!$H$52:$H$60,G$42) -> 1439.187221 | H117: =INDEX('Prop2024-25DistTar'!$H$52:$H$60,H$42) -> 129501.0675 | I117: =INDEX('Prop2024-25DistTar'!$H$52:$H$60,I$42) -> 22098.57262 | J117: =INDEX('Prop2024-25DistTar'!$H$52:$H$60,J$42) -> 17485.83322 | K117: =INDEX('Prop2024-25DistTar'!$H$52:$H$60,K$42) -> 1233.698096
B119: =B113 -> Proposed : Tariff V - Adjoining Central Zone - Domestic | C119: =INDEX('Prop2024-25DistTar'!$G$52:$G$60,C$41) -> 429670.9299 | D119: =INDEX('Prop2024-25DistTar'!$G$52:$G$60,D$41) -> 214935.1466 | E119: =INDEX('Prop2024-25DistTar'!$G$52:$G$60,E$41) -> 95165.02069 | F119: =INDEX('Prop2024-25DistTar'!$G$52:$G$60,F$41) -> 43879.65597 | G119: =INDEX('Prop2024-25DistTar'!$G$52:$G$60,G$41) -> 1574.212553 | H119: =INDEX('Prop2024-25DistTar'!$G$52:$G$60,H$41) -> 141652.686 | I119: =INDEX('Prop2024-25DistTar'!$G$52:$G$60,I$41) -> 24172.44237 | J119: =INDEX('Prop2024-25DistTar'!$G$52:$G$60,J$41) -> 19126.92913 | K119: =INDEX('Prop2024-25DistTar'!$G$52:$G$60,K$41) -> 1349.444169
B121: Revenue | C121: Total
B122: =B117 -> Existing : Tariff V - Adjoining Central Zone - Domestic | C122: =SUM(C117:K117) -> 904525.7715
B123: =B119 -> Proposed : Tariff V - Adjoining Central Zone - Domestic | C123: =SUM(C119:K119) -> 971526.4674
B125: Average price movement | C125: =IF(C123=0,"",C123/C122) -> 1.074072733
B127: =IF(C125="","",IF(C125<=$C$15,"REBALANCING CONTROL COMPLIANT","REBALANCING CONTROL BREACHED")) -> REBALANCING CONTROL COMPLIANT
B131: ='Prop2024-25DistTar'!B72 -> Tariff V - Adjoining West Zone - Domestic | C131: 1 | D131: 2 | E131: 3 | F131: 4 | G131: 5 | H131: 6 | I131: 7 | J131: 8 | K131: 9
C132: 1 | D132: 2 | E132: 3 | F132: 4 | G132: 5 | H132: 6 | I132: 7 | J132: 8 | K132: 9
B133: Distribution tariff | C133: Fixed | D133: PkBlk1 | E133: PkBlk2 | F133: PkBlk3 | G133: PkBlk4 | H133: OPkBlk1 | I133: OPkBlk2 | J133: OPkBlk3 | K133: OPkBlk4
B135: ="Existing : "&'Prop2024-25DistTar'!C72 -> Existing : Tariff V - Adjoining West Zone - Domestic | C135: =INDEX('Prop2024-25DistTar'!$E$74:$E$82,C$42) -> 0.4706 | D135: =INDEX('Prop2024-25DistTar'!$E$74:$E$82,D$42) -> 7.4405 | E135: =INDEX('Prop2024-25DistTar'!$E$74:$E$82,E$42) -> 6.247 | F135: =INDEX('Prop2024-25DistTar'!$E$74:$E$82,F$42) -> 3.206 | G135: =INDEX('Prop2024-25DistTar'!$E$74:$E$82,G$42) -> 2.8756 | H135: =INDEX('Prop2024-25DistTar'!$E$74:$E$82,H$42) -> 4.4153 | I135: =INDEX('Prop2024-25DistTar'!$E$74:$E$82,I$42) -> 3.3393 | J135: =INDEX('Prop2024-25DistTar'!$E$74:$E$82,J$42) -> 2.391 | K135: =INDEX('Prop2024-25DistTar'!$E$74:$E$82,K$42) -> 2.3162
B137: ="Proposed : "&B131 -> Proposed : Tariff V - Adjoining West Zone - Domestic | C137: =INDEX('Prop2024-25DistTar'!$D$74:$D$82,C$41) -> 0.4942 | D137: =INDEX('Prop2024-25DistTar'!$D$74:$D$82,D$41) -> 8.1387 | E137: =INDEX('Prop2024-25DistTar'!$D$74:$D$82,E$41) -> 6.8332 | F137: =INDEX('Prop2024-25DistTar'!$D$74:$D$82,F$41) -> 3.5068 | G137: =INDEX('Prop2024-25DistTar'!$D$74:$D$82,G$41) -> 3.1454 | H137: =INDEX('Prop2024-25DistTar'!$D$74:$D$82,H$41) -> 4.8296 | I137: =INDEX('Prop2024-25DistTar'!$D$74:$D$82,I$41) -> 3.6526 | J137: =INDEX('Prop2024-25DistTar'!$D$74:$D$82,J$41) -> 2.6154 | K137: =INDEX('Prop2024-25DistTar'!$D$74:$D$82,K$41) -> 2.5335
B139: Distribution volumes (actual) | C139: Fixed | D139: PkBlk1 | E139: PkBlk2 | F139: PkBlk3 | G139: PkBlk4 | H139: PkBlk5 | I139: Shd1Blk1 | J139: Shd1Blk2 | K139: Shd1Blk3
B141: =B135 -> Existing : Tariff V - Adjoining West Zone - Domestic | C141: =INDEX('Prop2024-25DistTar'!$F$74:$F$82,C$41) -> 14159.7453 | D141: =INDEX('Prop2024-25DistTar'!$F$74:$F$82,D$41) -> 109094.6347 | E141: =INDEX('Prop2024-25DistTar'!$F$74:$F$82,E$41) -> 81697.87612 | F141: =INDEX('Prop2024-25DistTar'!$F$74:$F$82,F$41) -> 144231.3418 | G141: =INDEX('Prop2024-25DistTar'!$F$74:$F$82,G$41) -> 1956.432095 | H141: =INDEX('Prop2024-25DistTar'!$F$74:$F$82,H$41) -> 192439.4272 | I141: =INDEX('Prop2024-25DistTar'!$F$74:$F$82,I$41) -> 72478.83923 | J141: =INDEX('Prop2024-25DistTar'!$F$74:$F$82,J$41) -> 59898.4194 | K141: =INDEX('Prop2024-25DistTar'!$F$74:$F$82,K$41) -> 2618.318134
B143: =B137 -> Proposed : Tariff V - Adjoining West Zone - Domestic | C143: =INDEX('Prop2024-25DistTar'!$F$74:$F$82,C$41) -> 14159.7453 | D143: =INDEX('Prop2024-25DistTar'!$F$74:$F$82,D$41) -> 109094.6347 | E143: =INDEX('Prop2024-25DistTar'!$F$74:$F$82,E$41) -> 81697.87612 | F143: =INDEX('Prop2024-25DistTar'!$F$74:$F$82,F$41) -> 144231.3418 | G143: =INDEX('Prop2024-25DistTar'!$F$74:$F$82,G$41) -> 1956.432095 | H143: =INDEX('Prop2024-25DistTar'!$F$74:$F$82,H$41) -> 192439.4272 | I143: =INDEX('Prop2024-25DistTar'!$F$74:$F$82,I$41) -> 72478.83923 | J143: =INDEX('Prop2024-25DistTar'!$F$74:$F$82,J$41) -> 59898.4194 | K143: =INDEX('Prop2024-25DistTar'!$F$74:$F$82,K$41) -> 2618.318134
B145: Distribution revenue | C145: Fixed | D145: PkBlk1 | E145: PkBlk2 | F145: PkBlk3 | G145: PkBlk4 | H145: PkBlk5 | I145: Shd1Blk1 | J145: Shd1Blk2 | K145: Shd1Blk3
B147: =B141 -> Existing : Tariff V - Adjoining West Zone - Domestic | C147: =INDEX('Prop2024-25DistTar'!$H$74:$H$82,C$42) -> 2432205.29 | D147: =INDEX('Prop2024-25DistTar'!$H$74:$H$82,D$42) -> 811718.6294 | E147: =INDEX('Prop2024-25DistTar'!$H$74:$H$82,E$42) -> 510366.6321 | F147: =INDEX('Prop2024-25DistTar'!$H$74:$H$82,F$42) -> 462405.682 | G147: =INDEX('Prop2024-25DistTar'!$H$74:$H$82,G$42) -> 5625.916133 | H147: =INDEX('Prop2024-25DistTar'!$H$74:$H$82,H$42) -> 849677.8031 | I147: =INDEX('Prop2024-25DistTar'!$H$74:$H$82,I$42) -> 242028.5878 | J147: =INDEX('Prop2024-25DistTar'!$H$74:$H$82,J$42) -> 143217.1208 | K147: =INDEX('Prop2024-25DistTar'!$H$74:$H$82,K$42) -> 6064.548462
B149: =B143 -> Proposed : Tariff V - Adjoining West Zone - Domestic | C149: =INDEX('Prop2024-25DistTar'!$G$74:$G$82,C$41) -> 2554177.336 | D149: =INDEX('Prop2024-25DistTar'!$G$74:$G$82,D$41) -> 887888.5033 | E149: =INDEX('Prop2024-25DistTar'!$G$74:$G$82,E$41) -> 558257.9271 | F149: =INDEX('Prop2024-25DistTar'!$G$74:$G$82,F$41) -> 505790.4696 | G149: =INDEX('Prop2024-25DistTar'!$G$74:$G$82,G$41) -> 6153.761512 | H149: =INDEX('Prop2024-25DistTar'!$G$74:$G$82,H$41) -> 929405.4578 | I149: =INDEX('Prop2024-25DistTar'!$G$74:$G$82,I$41) -> 264736.2082 | J149: =INDEX('Prop2024-25DistTar'!$G$74:$G$82,J$41) -> 156658.3261 | K149: =INDEX('Prop2024-25DistTar'!$G$74:$G$82,K$41) -> 6633.508993
B151: Revenue | C151: Total
B152: =B147 -> Existing : Tariff V - Adjoining West Zone - Domestic | C152: =SUM(C147:K147) -> 5463310.21
B153: =B149 -> Proposed : Tariff V - Adjoining West Zone - Domestic | C153: =SUM(C149:K149) -> 5869701.498
B155: Average price movement | C155: =IF(C153=0,"",C153/C152) -> 1.074385542
B157: =IF(C155="","",IF(C155<=$C$15,"REBALANCING CONTROL COMPLIANT","REBALANCING CONTROL BREACHED")) -> REBALANCING CONTROL COMPLIANT
B161: ='Prop2024-25DistTar'!B17 -> Tariff V - Central Zone - Non-domestic | C161: 1 | D161: 2 | E161: 3 | F161: 4 | G161: 5
C162: 1 | D162: 2 | E162: 3 | F162: 4 | G162: 5 | H162: 6 | I162: 7 | J162: 8 | K162: 9
B163: Distribution tariff | C163: Fixed | D163: PkBlk1 | E163: PkBlk2 | F163: PkBlk3 | G163: PkBlk4 | H163: OPkBlk1 | I163: OPkBlk2 | J163: OPkBlk3 | K163: OPkBlk4
B165: ="Existing : "&'Prop2024-25DistTar'!C17 -> Existing : Tariff V - Central Zone - Non-domestic | C165: =INDEX('Prop2024-25DistTar'!$E$19:$E$27,C$42) -> 0.4913 | D165: =INDEX('Prop2024-25DistTar'!$E$19:$E$27,D$42) -> 1.168 | E165: =INDEX('Prop2024-25DistTar'!$E$19:$E$27,E$42) -> 1.1127 | F165: =INDEX('Prop2024-25DistTar'!$E$19:$E$27,F$42) -> 1.0013 | G165: =INDEX('Prop2024-25DistTar'!$E$19:$E$27,G$42) -> 0.7643 | H165: =INDEX('Prop2024-25DistTar'!$E$19:$E$27,H$42) -> 1.1067 | I165: =INDEX('Prop2024-25DistTar'!$E$19:$E$27,I$42) -> 0.7743 | J165: =INDEX('Prop2024-25DistTar'!$E$19:$E$27,J$42) -> 0.6375 | K165: =INDEX('Prop2024-25DistTar'!$E$19:$E$27,K$42) -> 0.6181
B167: ="Proposed : "&B161 -> Proposed : Tariff V - Central Zone - Non-domestic | C167: =INDEX('Prop2024-25DistTar'!$D$19:$D$27,C$41) -> 0.516 | D167: =INDEX('Prop2024-25DistTar'!$D$19:$D$27,D$41) -> 1.2776 | E167: =INDEX('Prop2024-25DistTar'!$D$19:$D$27,E$41) -> 1.2171 | F167: =INDEX('Prop2024-25DistTar'!$D$19:$D$27,F$41) -> 1.0953 | G167: =INDEX('Prop2024-25DistTar'!$D$19:$D$27,G$41) -> 0.836 | H167: =INDEX('Prop2024-25DistTar'!$D$19:$D$27,H$41) -> 1.2105 | I167: =INDEX('Prop2024-25DistTar'!$D$19:$D$27,I$41) -> 0.847 | J167: =INDEX('Prop2024-25DistTar'!$D$19:$D$27,J$41) -> 0.6973 | K167: =INDEX('Prop2024-25DistTar'!$D$19:$D$27,K$41) -> 0.6761
B169: Distribution volumes (actual) | C169: Fixed | D169: PkBlk1 | E169: PkBlk2 | F169: PkBlk3 | G169: PkBlk4 | H169: PkBlk5 | I169: Shd1Blk1 | J169: Shd1Blk2 | K169: Shd1Blk3
B171: =B165 -> Existing : Tariff V - Central Zone - Non-domestic | C171: =INDEX('Prop2024-25DistTar'!$F$19:$F$27,C$41) -> 11341.70107 | D171: =INDEX('Prop2024-25DistTar'!$F$19:$F$27,D$41) -> 77701.7521 | E171: =INDEX('Prop2024-25DistTar'!$F$19:$F$27,E$41) -> 62502.95603 | F171: =INDEX('Prop2024-25DistTar'!$F$19:$F$27,F$41) -> 386317.6681 | G171: =INDEX('Prop2024-25DistTar'!$F$19:$F$27,G$41) -> 1056407.419 | H171: =INDEX('Prop2024-25DistTar'!$F$19:$F$27,H$41) -> 168895.7433 | I171: =INDEX('Prop2024-25DistTar'!$F$19:$F$27,I$41) -> 123143.7536 | J171: =INDEX('Prop2024-25DistTar'!$F$19:$F$27,J$41) -> 749643.2598 | K171: =INDEX('Prop2024-25DistTar'!$F$19:$F$27,K$41) -> 1641338.785
B173: =B167 -> Proposed : Tariff V - Central Zone - Non-domestic | C173: =INDEX('Prop2024-25DistTar'!$F$19:$F$27,C$41) -> 11341.70107 | D173: =INDEX('Prop2024-25DistTar'!$F$19:$F$27,D$41) -> 77701.7521 | E173: =INDEX('Prop2024-25DistTar'!$F$19:$F$27,E$41) -> 62502.95603 | F173: =INDEX('Prop2024-25DistTar'!$F$19:$F$27,F$41) -> 386317.6681 | G173: =INDEX('Prop2024-25DistTar'!$F$19:$F$27,G$41) -> 1056407.419 | H173: =INDEX('Prop2024-25DistTar'!$F$19:$F$27,H$41) -> 168895.7433 | I173: =INDEX('Prop2024-25DistTar'!$F$19:$F$27,I$41) -> 123143.7536 | J173: =INDEX('Prop2024-25DistTar'!$F$19:$F$27,J$41) -> 749643.2598 | K173: =INDEX('Prop2024-25DistTar'!$F$19:$F$27,K$41) -> 1641338.785
B175: Distribution revenue | C175: Fixed | D175: PkBlk1 | E175: PkBlk2 | F175: PkBlk3 | G175: PkBlk4 | H175: PkBlk5 | I175: Shd1Blk1 | J175: Shd1Blk2 | K175: Shd1Blk3
B177: =B171 -> Existing : Tariff V - Central Zone - Non-domestic | C177: =INDEX('Prop2024-25DistTar'!$H$19:$H$27,C$42) -> 2033844.873 | D177: =INDEX('Prop2024-25DistTar'!$H$19:$H$27,D$42) -> 90755.64646 | E177: =INDEX('Prop2024-25DistTar'!$H$19:$H$27,E$42) -> 69547.03917 | F177: =INDEX('Prop2024-25DistTar'!$H$19:$H$27,F$42) -> 386819.881 | G177: =INDEX('Prop2024-25DistTar'!$H$19:$H$27,G$42) -> 807412.1902 | H177: =INDEX('Prop2024-25DistTar'!$H$19:$H$27,H$42) -> 186916.9191 | I177: =INDEX('Prop2024-25DistTar'!$H$19:$H$27,I$42) -> 95350.20841 | J177: =INDEX('Prop2024-25DistTar'!$H$19:$H$27,J$42) -> 477897.5781 | K177: =INDEX('Prop2024-25DistTar'!$H$19:$H$27,K$42) -> 1014511.503
B179: =B173 -> Proposed : Tariff V - Central Zone - Non-domestic | C179: =INDEX('Prop2024-25DistTar'!$G$19:$G$27,C$41) -> 2136095.979 | D179: =INDEX('Prop2024-25DistTar'!$G$19:$G$27,D$41) -> 99271.75849 | E179: =INDEX('Prop2024-25DistTar'!$G$19:$G$27,E$41) -> 76072.34778 | F179: =INDEX('Prop2024-25DistTar'!$G$19:$G$27,F$41) -> 423133.7418 | G179: =INDEX('Prop2024-25DistTar'!$G$19:$G$27,G$41) -> 883156.6021 | H179: =INDEX('Prop2024-25DistTar'!$G$19:$G$27,H$41) -> 204448.2973 | I179: =INDEX('Prop2024-25DistTar'!$G$19:$G$27,I$41) -> 104302.7593 | J179: =INDEX('Prop2024-25DistTar'!$G$19:$G$27,J$41) -> 522726.245 | K179: =INDEX('Prop2024-25DistTar'!$G$19:$G$27,K$41) -> 1109709.153
B181: Revenue | C181: Total
B182: =B177 -> Existing : Tariff V - Central Zone - Non-domestic | C182: =SUM(C177:K177) -> 5163055.839
B183: =B179 -> Proposed : Tariff V - Central Zone - Non-domestic | C183: =SUM(C179:K179) -> 5558916.884
B185: Average price movement | C185: =IF(C183=0,"",C183/C182) -> 1.07667185
B187: =IF(C185="","",IF(C185<=$C$15,"REBALANCING CONTROL COMPLIANT","REBALANCING CONTROL BREACHED")) -> REBALANCING CONTROL COMPLIANT
B191: ='Prop2024-25DistTar'!B39 -> Tariff V - West Zone - Non-domestic | C191: 1 | D191: 2 | E191: 3 | F191: 4 | G191: 5
C192: 1 | D192: 2 | E192: 3 | F192: 4 | G192: 5 | H192: 6 | I192: 7 | J192: 8 | K192: 9
B193: Distribution tariff | C193: Fixed | D193: PkBlk1 | E193: PkBlk2 | F193: PkBlk3 | G193: PkBlk4 | H193: OPkBlk1 | I193: OPkBlk2 | J193: OPkBlk3 | K193: OPkBlk4
B195: ="Existing : "&'Prop2024-25DistTar'!C39 -> Existing : Tariff V - West Zone - Non-domestic | C195: =INDEX('Prop2024-25DistTar'!$E$41:$E$49,C$42) -> 0.4913 | D195: =INDEX('Prop2024-25DistTar'!$E$41:$E$49,D$42) -> 1.7849 | E195: =INDEX('Prop2024-25DistTar'!$E$41:$E$49,E$42) -> 1.5044 | F195: =INDEX('Prop2024-25DistTar'!$E$41:$E$49,F$42) -> 0.9294 | G195: =INDEX('Prop2024-25DistTar'!$E$41:$E$49,G$42) -> 0.3485 | H195: =INDEX('Prop2024-25DistTar'!$E$41:$E$49,H$42) -> 0.8271 | I195: =INDEX('Prop2024-25DistTar'!$E$41:$E$49,I$42) -> 0.6968 | J195: =INDEX('Prop2024-25DistTar'!$E$41:$E$49,J$42) -> 0.3357 | K195: =INDEX('Prop2024-25DistTar'!$E$41:$E$49,K$42) -> 0.2497
B197: ="Proposed : "&B191 -> Proposed : Tariff V - West Zone - Non-domestic | C197: =INDEX('Prop2024-25DistTar'!$D$41:$D$49,C$41) -> 0.516 | D197: =INDEX('Prop2024-25DistTar'!$D$41:$D$49,D$41) -> 1.9524 | E197: =INDEX('Prop2024-25DistTar'!$D$41:$D$49,E$41) -> 1.6456 | F197: =INDEX('Prop2024-25DistTar'!$D$41:$D$49,F$41) -> 1.0166 | G197: =INDEX('Prop2024-25DistTar'!$D$41:$D$49,G$41) -> 0.3812 | H197: =INDEX('Prop2024-25DistTar'!$D$41:$D$49,H$41) -> 0.9047 | I197: =INDEX('Prop2024-25DistTar'!$D$41:$D$49,I$41) -> 0.7622 | J197: =INDEX('Prop2024-25DistTar'!$D$41:$D$49,J$41) -> 0.3672 | K197: =INDEX('Prop2024-25DistTar'!$D$41:$D$49,K$41) -> 0.2731
B199: Distribution volumes (actual) | C199: Fixed | D199: PkBlk1 | E199: PkBlk2 | F199: PkBlk3 | G199: PkBlk4 | H199: PkBlk5 | I199: Shd1Blk1 | J199: Shd1Blk2 | K199: Shd1Blk3
B201: =B195 -> Existing : Tariff V - West Zone - Non-domestic | C201: =INDEX('Prop2024-25DistTar'!$F$41:$F$49,C$41) -> 6319.536396 | D201: =INDEX('Prop2024-25DistTar'!$F$41:$F$49,D$41) -> 39559.94756 | E201: =INDEX('Prop2024-25DistTar'!$F$41:$F$49,E$41) -> 30232.37597 | F201: =INDEX('Prop2024-25DistTar'!$F$41:$F$49,F$41) -> 165603.8222 | G201: =INDEX('Prop2024-25DistTar'!$F$41:$F$49,G$41) -> 364941.066 | H201: =INDEX('Prop2024-25DistTar'!$F$41:$F$49,H$41) -> 78897.44767 | I201: =INDEX('Prop2024-25DistTar'!$F$41:$F$49,I$41) -> 52272.50351 | J201: =INDEX('Prop2024-25DistTar'!$F$41:$F$49,J$41) -> 277192.2656 | K201: =INDEX('Prop2024-25DistTar'!$F$41:$F$49,K$41) -> 484525.17
B203: =B197 -> Proposed : Tariff V - West Zone - Non-domestic | C203: =INDEX('Prop2024-25DistTar'!$F$41:$F$49,C$41) -> 6319.536396 | D203: =INDEX('Prop2024-25DistTar'!$F$41:$F$49,D$41) -> 39559.94756 | E203: =INDEX('Prop2024-25DistTar'!$F$41:$F$49,E$41) -> 30232.37597 | F203: =INDEX('Prop2024-25DistTar'!$F$41:$F$49,F$41) -> 165603.8222 | G203: =INDEX('Prop2024-25DistTar'!$F$41:$F$49,G$41) -> 364941.066 | H203: =INDEX('Prop2024-25DistTar'!$F$41:$F$49,H$41) -> 78897.44767 | I203: =INDEX('Prop2024-25DistTar'!$F$41:$F$49,I$41) -> 52272.50351 | J203: =INDEX('Prop2024-25DistTar'!$F$41:$F$49,J$41) -> 277192.2656 | K203: =INDEX('Prop2024-25DistTar'!$F$41:$F$49,K$41) -> 484525.17
B205: Distribution revenue | C205: Fixed | D205: PkBlk1 | E205: PkBlk2 | F205: PkBlk3 | G205: PkBlk4 | H205: PkBlk5 | I205: Shd1Blk1 | J205: Shd1Blk2 | K205: Shd1Blk3
B207: =B201 -> Existing : Tariff V - West Zone - Non-domestic | C207: =INDEX('Prop2024-25DistTar'!$H$41:$H$49,C$42) -> 1133247.704 | D207: =INDEX('Prop2024-25DistTar'!$H$41:$H$49,D$42) -> 70610.5504 | E207: =INDEX('Prop2024-25DistTar'!$H$41:$H$49,E$42) -> 45481.58641 | F207: =INDEX('Prop2024-25DistTar'!$H$41:$H$49,F$42) -> 153912.1924 | G207: =INDEX('Prop2024-25DistTar'!$H$41:$H$49,G$42) -> 127181.9615 | H207: =INDEX('Prop2024-25DistTar'!$H$41:$H$49,H$42) -> 65256.07897 | I207: =INDEX('Prop2024-25DistTar'!$H$41:$H$49,I$42) -> 36423.48044 | J207: =INDEX('Prop2024-25DistTar'!$H$41:$H$49,J$42) -> 93053.44358 | K207: =INDEX('Prop2024-25DistTar'!$H$41:$H$49,K$42) -> 120985.935
B209: =B203 -> Proposed : Tariff V - West Zone - Non-domestic | C209: =INDEX('Prop2024-25DistTar'!$G$41:$G$49,C$41) -> 1190221.485 | D209: =INDEX('Prop2024-25DistTar'!$G$41:$G$49,D$41) -> 77236.84161 | E209: =INDEX('Prop2024-25DistTar'!$G$41:$G$49,E$41) -> 49750.3979 | F209: =INDEX('Prop2024-25DistTar'!$G$41:$G$49,F$41) -> 168352.8456 | G209: =INDEX('Prop2024-25DistTar'!$G$41:$G$49,G$41) -> 139115.5344 | H209: =INDEX('Prop2024-25DistTar'!$G$41:$G$49,H$41) -> 71378.52091 | I209: =INDEX('Prop2024-25DistTar'!$G$41:$G$49,I$41) -> 39842.10217 | J209: =INDEX('Prop2024-25DistTar'!$G$41:$G$49,J$41) -> 101784.9999 | K209: =INDEX('Prop2024-25DistTar'!$G$41:$G$49,K$41) -> 132323.8239
B211: Revenue | C211: Total
B212: =B207 -> Existing : Tariff V - West Zone - Non-domestic | C212: =SUM(C207:K207) -> 1846152.933
B213: =B209 -> Proposed : Tariff V - West Zone - Non-domestic | C213: =SUM(C209:K209) -> 1970006.551
B215: Average price movement | C215: =IF(C213=0,"",C213/C212) -> 1.06708741
B217: =IF(C215="","",IF(C215<=$C$15,"REBALANCING CONTROL COMPLIANT","REBALANCING CONTROL BREACHED")) -> REBALANCING CONTROL COMPLIANT
B221: ='Prop2024-25DistTar'!B61 -> Tariff V - Adjoining Central Zone - Non-domestic | C221: 1 | D221: 2 | E221: 3 | F221: 4 | G221: 5
C222: 1 | D222: 2 | E222: 3 | F222: 4 | G222: 5 | H222: 6 | I222: 7 | J222: 8 | K222: 9
B223: Distribution tariff | C223: Fixed | D223: PkBlk1 | E223: PkBlk2 | F223: PkBlk3 | G223: PkBlk4 | H223: OPkBlk1 | I223: OPkBlk2 | J223: OPkBlk3 | K223: OPkBlk4
B225: ="Existing : "&'Prop2024-25DistTar'!C61 -> Existing : Tariff V - Adjoining Central Zone - Non-domestic | C225: =INDEX('Prop2024-25DistTar'!$E$63:$E$71,C$42) -> 0.4913 | D225: =INDEX('Prop2024-25DistTar'!$E$63:$E$71,D$42) -> 4.3657 | E225: =INDEX('Prop2024-25DistTar'!$E$63:$E$71,E$42) -> 4.1602 | F225: =INDEX('Prop2024-25DistTar'!$E$63:$E$71,F$42) -> 3.9327 | G225: =INDEX('Prop2024-25DistTar'!$E$63:$E$71,G$42) -> 3.7144 | H225: =INDEX('Prop2024-25DistTar'!$E$63:$E$71,H$42) -> 4.0186 | I225: =INDEX('Prop2024-25DistTar'!$E$63:$E$71,I$42) -> 3.8576 | J225: =INDEX('Prop2024-25DistTar'!$E$63:$E$71,J$42) -> 3.7381 | K225: =INDEX('Prop2024-25DistTar'!$E$63:$E$71,K$42) -> 3.6468
B227: ="Proposed : "&B221 -> Proposed : Tariff V - Adjoining Central Zone - Non-domestic | C227: =INDEX('Prop2024-25DistTar'!$D$63:$D$71,C$41) -> 0.516 | D227: =INDEX('Prop2024-25DistTar'!$D$63:$D$71,D$41) -> 4.7753 | E227: =INDEX('Prop2024-25DistTar'!$D$63:$D$71,E$41) -> 4.5506 | F227: =INDEX('Prop2024-25DistTar'!$D$63:$D$71,F$41) -> 4.3017 | G227: =INDEX('Prop2024-25DistTar'!$D$63:$D$71,G$41) -> 4.0629 | H227: =INDEX('Prop2024-25DistTar'!$D$63:$D$71,H$41) -> 4.3957 | I227: =INDEX('Prop2024-25DistTar'!$D$63:$D$71,I$41) -> 4.2196 | J227: =INDEX('Prop2024-25DistTar'!$D$63:$D$71,J$41) -> 4.0889 | K227: =INDEX('Prop2024-25DistTar'!$D$63:$D$71,K$41) -> 3.989
B229: Distribution volumes (actual) | C229: Fixed | D229: PkBlk1 | E229: PkBlk2 | F229: PkBlk3 | G229: PkBlk4 | H229: PkBlk5 | I229: Shd1Blk1 | J229: Shd1Blk2 | K229: Shd1Blk3
B231: =B225 -> Existing : Tariff V - Adjoining Central Zone - Non-domestic | C231: =INDEX('Prop2024-25DistTar'!$F$63:$F$71,C$41) -> 27.43509423 | D231: =INDEX('Prop2024-25DistTar'!$F$63:$F$71,D$41) -> 237.1753811 | E231: =INDEX('Prop2024-25DistTar'!$F$63:$F$71,E$41) -> 177.518264 | F231: =INDEX('Prop2024-25DistTar'!$F$63:$F$71,F$41) -> 935.7350279 | G231: =INDEX('Prop2024-25DistTar'!$F$63:$F$71,G$41) -> 340.230827 | H231: =INDEX('Prop2024-25DistTar'!$F$63:$F$71,H$41) -> 413.1701923 | I231: =INDEX('Prop2024-25DistTar'!$F$63:$F$71,I$41) -> 259.7413903 | J231: =INDEX('Prop2024-25DistTar'!$F$63:$F$71,J$41) -> 1633.722438 | K231: =INDEX('Prop2024-25DistTar'!$F$63:$F$71,K$41) -> 752.2159794
B233: =B227 -> Proposed : Tariff V - Adjoining Central Zone - Non-domestic | C233: =INDEX('Prop2024-25DistTar'!$F$63:$F$71,C$41) -> 27.43509423 | D233: =INDEX('Prop2024-25DistTar'!$F$63:$F$71,D$41) -> 237.1753811 | E233: =INDEX('Prop2024-25DistTar'!$F$63:$F$71,E$41) -> 177.518264 | F233: =INDEX('Prop2024-25DistTar'!$F$63:$F$71,F$41) -> 935.7350279 | G233: =INDEX('Prop2024-25DistTar'!$F$63:$F$71,G$41) -> 340.230827 | H233: =INDEX('Prop2024-25DistTar'!$F$63:$F$71,H$41) -> 413.1701923 | I233: =INDEX('Prop2024-25DistTar'!$F$63:$F$71,I$41) -> 259.7413903 | J233: =INDEX('Prop2024-25DistTar'!$F$63:$F$71,J$41) -> 1633.722438 | K233: =INDEX('Prop2024-25DistTar'!$F$63:$F$71,K$41) -> 752.2159794
B235: Distribution revenue | C235: Fixed | D235: PkBlk1 | E235: PkBlk2 | F235: PkBlk3 | G235: PkBlk4 | H235: PkBlk5 | I235: Shd1Blk1 | J235: Shd1Blk2 | K235: Shd1Blk3
B237: =B231 -> Existing : Tariff V - Adjoining Central Zone - Non-domestic | C237: =INDEX('Prop2024-25DistTar'!$H$63:$H$71,C$42) -> 4919.784554 | D237: =INDEX('Prop2024-25DistTar'!$H$63:$H$71,D$42) -> 1035.436561 | E237: =INDEX('Prop2024-25DistTar'!$H$63:$H$71,E$42) -> 738.5114821 | F237: =INDEX('Prop2024-25DistTar'!$H$63:$H$71,F$42) -> 3679.965144 | G237: =INDEX('Prop2024-25DistTar'!$H$63:$H$71,G$42) -> 1263.753384 | H237: =INDEX('Prop2024-25DistTar'!$H$63:$H$71,H$42) -> 1660.365735 | I237: =INDEX('Prop2024-25DistTar'!$H$63:$H$71,I$42) -> 1001.978387 | J237: =INDEX('Prop2024-25DistTar'!$H$63:$H$71,J$42) -> 6107.017846 | K237: =INDEX('Prop2024-25DistTar'!$H$63:$H$71,K$42) -> 2743.181234
B239: =B233 -> Proposed : Tariff V - Adjoining Central Zone - Non-domestic | C239: =INDEX('Prop2024-25DistTar'!$G$63:$G$71,C$41) -> 5167.125646 | D239: =INDEX('Prop2024-25DistTar'!$G$63:$G$71,D$41) -> 1132.583597 | E239: =INDEX('Prop2024-25DistTar'!$G$63:$G$71,E$41) -> 807.8146123 | F239: =INDEX('Prop2024-25DistTar'!$G$63:$G$71,F$41) -> 4025.251369 | G239: =INDEX('Prop2024-25DistTar'!$G$63:$G$71,G$41) -> 1382.323827 | H239: =INDEX('Prop2024-25DistTar'!$G$63:$G$71,H$41) -> 1816.172214 | I239: =INDEX('Prop2024-25DistTar'!$G$63:$G$71,I$41) -> 1096.00477 | J239: =INDEX('Prop2024-25DistTar'!$G$63:$G$71,J$41) -> 6680.127677 | K239: =INDEX('Prop2024-25DistTar'!$G$63:$G$71,K$41) -> 3000.589542
B241: Revenue | C241: Total
B242: =B237 -> Existing : Tariff V - Adjoining Central Zone - Non-domestic | C242: =SUM(C237:K237) -> 23149.99433
B243: =B239 -> Proposed : Tariff V - Adjoining Central Zone - Non-domestic | C243: =SUM(C239:K239) -> 25107.99326
B245: Average price movement | C245: =IF(C243=0,"",C243/C242) -> 1.084578808
B247: =IF(C245="","",IF(C245<=$C$15,"REBALANCING CONTROL COMPLIANT","REBALANCING CONTROL BREACHED")) -> REBALANCING CONTROL COMPLIANT
B251: ='Prop2024-25DistTar'!B83 -> Tariff V - Adjoining West Zone - Non-domestic | C251: 1 | D251: 2 | E251: 3 | F251: 4 | G251: 5
C252: 1 | D252: 2 | E252: 3 | F252: 4 | G252: 5 | H252: 6 | I252: 7 | J252: 8 | K252: 9
B253: Distribution tariff | C253: Fixed | D253: PkBlk1 | E253: PkBlk2 | F253: PkBlk3 | G253: PkBlk4 | H253: OPkBlk1 | I253: OPkBlk2 | J253: OPkBlk3 | K253: OPkBlk4
B255: ="Existing : "&'Prop2024-25DistTar'!C83 -> Existing : Tariff V - Adjoining West Zone - Non-domestic | C255: =INDEX('Prop2024-25DistTar'!$E$85:$E$93,C$42) -> 0.4913 | D255: =INDEX('Prop2024-25DistTar'!$E$85:$E$93,D$42) -> 5.3873 | E255: =INDEX('Prop2024-25DistTar'!$E$85:$E$93,E$42) -> 5.0569 | F255: =INDEX('Prop2024-25DistTar'!$E$85:$E$93,F$42) -> 4.3434 | G255: =INDEX('Prop2024-25DistTar'!$E$85:$E$93,G$42) -> 3.8179 | H255: =INDEX('Prop2024-25DistTar'!$E$85:$E$93,H$42) -> 4.1416 | I255: =INDEX('Prop2024-25DistTar'!$E$85:$E$93,I$42) -> 3.9406 | J255: =INDEX('Prop2024-25DistTar'!$E$85:$E$93,J$42) -> 3.445 | K255: =INDEX('Prop2024-25DistTar'!$E$85:$E$93,K$42) -> 3.2806
B257: ="Proposed : "&B251 -> Proposed : Tariff V - Adjoining West Zone - Non-domestic | C257: =INDEX('Prop2024-25DistTar'!$D$85:$D$93,C$41) -> 0.516 | D257: =INDEX('Prop2024-25DistTar'!$D$85:$D$93,D$41) -> 5.8928 | E257: =INDEX('Prop2024-25DistTar'!$D$85:$D$93,E$41) -> 5.5314 | F257: =INDEX('Prop2024-25DistTar'!$D$85:$D$93,F$41) -> 4.751 | G257: =INDEX('Prop2024-25DistTar'!$D$85:$D$93,G$41) -> 4.1761 | H257: =INDEX('Prop2024-25DistTar'!$D$85:$D$93,H$41) -> 4.5302 | I257: =INDEX('Prop2024-25DistTar'!$D$85:$D$93,I$41) -> 4.3104 | J257: =INDEX('Prop2024-25DistTar'!$D$85:$D$93,J$41) -> 3.7683 | K257: =INDEX('Prop2024-25DistTar'!$D$85:$D$93,K$41) -> 3.5884
B259: Distribution volumes (actual) | C259: Fixed | D259: PkBlk1 | E259: PkBlk2 | F259: PkBlk3 | G259: PkBlk4 | H259: PkBlk5 | I259: Shd1Blk1 | J259: Shd1Blk2 | K259: Shd1Blk3
B261: =B255 -> Existing : Tariff V - Adjoining West Zone - Non-domestic | C261: =INDEX('Prop2024-25DistTar'!$F$85:$F$93,C$41) -> 337.0719065 | D261: =INDEX('Prop2024-25DistTar'!$F$85:$F$93,D$41) -> 2557.857696 | E261: =INDEX('Prop2024-25DistTar'!$F$85:$F$93,E$41) -> 1990.267409 | F261: =INDEX('Prop2024-25DistTar'!$F$85:$F$93,F$41) -> 11676.90916 | G261: =INDEX('Prop2024-25DistTar'!$F$85:$F$93,G$41) -> 23760.91972 | H261: =INDEX('Prop2024-25DistTar'!$F$85:$F$93,H$41) -> 5620.049989 | I261: =INDEX('Prop2024-25DistTar'!$F$85:$F$93,I$41) -> 4061.742118 | J261: =INDEX('Prop2024-25DistTar'!$F$85:$F$93,J$41) -> 22996.02145 | K261: =INDEX('Prop2024-25DistTar'!$F$85:$F$93,K$41) -> 34043.04988
B263: =B257 -> Proposed : Tariff V - Adjoining West Zone - Non-domestic | C263: =INDEX('Prop2024-25DistTar'!$F$85:$F$93,C$41) -> 337.0719065 | D263: =INDEX('Prop2024-25DistTar'!$F$85:$F$93,D$41) -> 2557.857696 | E263: =INDEX('Prop2024-25DistTar'!$F$85:$F$93,E$41) -> 1990.267409 | F263: =INDEX('Prop2024-25DistTar'!$F$85:$F$93,F$41) -> 11676.90916 | G263: =INDEX('Prop2024-25DistTar'!$F$85:$F$93,G$41) -> 23760.91972 | H263: =INDEX('Prop2024-25DistTar'!$F$85:$F$93,H$41) -> 5620.049989 | I263: =INDEX('Prop2024-25DistTar'!$F$85:$F$93,I$41) -> 4061.742118 | J263: =INDEX('Prop2024-25DistTar'!$F$85:$F$93,J$41) -> 22996.02145 | K263: =INDEX('Prop2024-25DistTar'!$F$85:$F$93,K$41) -> 34043.04988
B265: Distribution revenue | C265: Fixed | D265: PkBlk1 | E265: PkBlk2 | F265: PkBlk3 | G265: PkBlk4 | H265: PkBlk5 | I265: Shd1Blk1 | J265: Shd1Blk2 | K265: Shd1Blk3
B267: =B261 -> Existing : Tariff V - Adjoining West Zone - Non-domestic | C267: =INDEX('Prop2024-25DistTar'!$H$85:$H$93,C$42) -> 60445.25109 | D267: =INDEX('Prop2024-25DistTar'!$H$85:$H$93,D$42) -> 13779.94677 | E267: =INDEX('Prop2024-25DistTar'!$H$85:$H$93,E$42) -> 10064.58326 | F267: =INDEX('Prop2024-25DistTar'!$H$85:$H$93,F$42) -> 50717.48724 | G267: =INDEX('Prop2024-25DistTar'!$H$85:$H$93,G$42) -> 90716.8154 | H267: =INDEX('Prop2024-25DistTar'!$H$85:$H$93,H$42) -> 23275.99903 | I267: =INDEX('Prop2024-25DistTar'!$H$85:$H$93,I$42) -> 16005.70099 | J267: =INDEX('Prop2024-25DistTar'!$H$85:$H$93,J$42) -> 79221.2939 | K267: =INDEX('Prop2024-25DistTar'!$H$85:$H$93,K$42) -> 111681.6294
B269: =B263 -> Proposed : Tariff V - Adjoining West Zone - Non-domestic | C269: =INDEX('Prop2024-25DistTar'!$G$85:$G$93,C$41) -> 63484.12286 | D269: =INDEX('Prop2024-25DistTar'!$G$85:$G$93,D$41) -> 15072.94383 | E269: =INDEX('Prop2024-25DistTar'!$G$85:$G$93,E$41) -> 11008.96515 | F269: =INDEX('Prop2024-25DistTar'!$G$85:$G$93,F$41) -> 55476.99542 | G269: =INDEX('Prop2024-25DistTar'!$G$85:$G$93,G$41) -> 99227.97685 | H269: =INDEX('Prop2024-25DistTar'!$G$85:$G$93,H$41) -> 25459.95046 | I269: =INDEX('Prop2024-25DistTar'!$G$85:$G$93,I$41) -> 17507.73322 | J269: =INDEX('Prop2024-25DistTar'!$G$85:$G$93,J$41) -> 86655.90763 | K269: =INDEX('Prop2024-25DistTar'!$G$85:$G$93,K$41) -> 122160.0802
B271: Revenue | C271: Total
B272: =B267 -> Existing : Tariff V - Adjoining West Zone - Non-domestic | C272: =SUM(C267:K267) -> 455908.7071
B273: =B269 -> Proposed : Tariff V - Adjoining West Zone - Non-domestic | C273: =SUM(C269:K269) -> 496054.6756
B275: Average price movement | C275: =IF(C273=0,"",C273/C272) -> 1.088057034
B277: =IF(C275="","",IF(C275<=$C$15,"REBALANCING CONTROL COMPLIANT","REBALANCING CONTROL BREACHED")) -> REBALANCING CONTROL COMPLIANT
B281: ='Prop2024-25DistTar'!B95 -> Tariff M - Central Zone
C282: 1 | D282: 2 | E282: 3
B283: Distribution tariff | C283: DemBlk1 | D283: DemBlk2 | E283: DemBlk2
B284: ="Existing: "&'Prop2024-25DistTar'!C95 -> Existing: Tariff M - Central Zone | C284: =INDEX('Prop2024-25DistTar'!$E$96:$E$98,C282) -> 752.2987 | D284: =INDEX('Prop2024-25DistTar'!$E$96:$E$98,D282) -> 716.5018 | E284: =INDEX('Prop2024-25DistTar'!$E$96:$E$98,E282) -> 149.6071
B285: ="Proposed: "&B281 -> Proposed: Tariff M - Central Zone | C285: =INDEX('Prop2024-25DistTar'!$D$96:$D$98,C282) -> 802.687 | D285: =INDEX('Prop2024-25DistTar'!$D$96:$D$98,D282) -> 764.4925 | E285: =INDEX('Prop2024-25DistTar'!$D$96:$D$98,E282) -> 159.6277
B287: Distribution volumes (actual) | C287: DemBlk1 | D287: DemBlk2 | E287: DemBlk2
B288: =B284 -> Existing: Tariff M - Central Zone | C288: =INDEX('Prop2024-25DistTar'!$F$96:$F$98,C$282) -> 150.0675 | D288: =INDEX('Prop2024-25DistTar'!$F$96:$F$98,D$282) -> 18.88916667 | E288: =INDEX('Prop2024-25DistTar'!$F$96:$F$98,E$282) -> 0
B289: =B285 -> Proposed: Tariff M - Central Zone | C289: =INDEX('Prop2024-25DistTar'!$F$96:$F$98,C$282) -> 150.0675 | D289: =INDEX('Prop2024-25DistTar'!$F$96:$F$98,D$282) -> 18.88916667 | E289: =INDEX('Prop2024-25DistTar'!$F$96:$F$98,E$282) -> 0
B291: Distribution revenue | C291: DemBlk1 | D291: DemBlk2 | E291: DemBlk2
B292: =B288 -> Existing: Tariff M - Central Zone | C292: =INDEX('Prop2024-25DistTar'!$H$96:$H$98,C282) -> 112895.5852 | D292: =INDEX('Prop2024-25DistTar'!$H$96:$H$98,D282) -> 13534.12192 | E292: =INDEX('Prop2024-25DistTar'!$H$96:$H$98,E282) -> 0
B293: =B289 -> Proposed: Tariff M - Central Zone | C293: =INDEX('Prop2024-25DistTar'!$G$96:$G$98,C282) -> 120457.2314 | D293: =INDEX('Prop2024-25DistTar'!$G$96:$G$98,D282) -> 14440.62625 | E293: =INDEX('Prop2024-25DistTar'!$G$96:$G$98,E282) -> 0
B295: Revenue | C295: Total
B296: =B292 -> Existing: Tariff M - Central Zone | C296: =SUM(C292:E292) -> 126429.7071
B297: =B293 -> Proposed: Tariff M - Central Zone | C297: =SUM(C293:E293) -> 134897.8576
B299: Average price movement | C299: =IF(C297=0,"",C297/C296) -> 1.06697912
B301: =IF(C299="","",IF(C299<=$C$15,"REBALANCING CONTROL COMPLIANT","REBALANCING CONTROL BREACHED")) -> REBALANCING CONTROL COMPLIANT
B305: ='Prop2024-25DistTar'!B100 -> Tariff M - West Zone
C306: 1 | D306: 2 | E306: 3
B307: Distribution tariff | C307: DemBlk1 | D307: DemBlk2 | E307: DemBlk2
B308: ="Existing: "&'Prop2024-25DistTar'!C100 -> Existing: Tariff M - West Zone | C308: =INDEX('Prop2024-25DistTar'!$E$101:$E$103,C306) -> 752.2987 | D308: =INDEX('Prop2024-25DistTar'!$E$101:$E$103,D306) -> 716.5018 | E308: =INDEX('Prop2024-25DistTar'!$E$101:$E$103,E306) -> 149.6071
B309: ="Proposed: "&B305 -> Proposed: Tariff M - West Zone | C309: =INDEX('Prop2024-25DistTar'!$D$101:$D$103,C306) -> 802.687 | D309: =INDEX('Prop2024-25DistTar'!$D$101:$D$103,D306) -> 764.4925 | E309: =INDEX('Prop2024-25DistTar'!$D$101:$D$103,E306) -> 159.6277
B311: Distribution volumes (actual) | C311: DemBlk1 | D311: DemBlk2 | E311: DemBlk2
B312: =B308 -> Existing: Tariff M - West Zone | C312: =INDEX('Prop2024-25DistTar'!$F$101:$F$103,C$282) -> 60.63333333 | D312: =INDEX('Prop2024-25DistTar'!$F$101:$F$103,D$282) -> 27.125 | E312: =INDEX('Prop2024-25DistTar'!$F$101:$F$103,E$282) -> 0
B313: =B309 -> Proposed: Tariff M - West Zone | C313: =INDEX('Prop2024-25DistTar'!$F$101:$F$103,C$282) -> 60.63333333 | D313: =INDEX('Prop2024-25DistTar'!$F$101:$F$103,D$282) -> 27.125 | E313: =INDEX('Prop2024-25DistTar'!$F$101:$F$103,E$282) -> 0
B315: Distribution revenue | C315: DemBlk1 | D315: DemBlk2 | E315: DemBlk2
B316: =B312 -> Existing: Tariff M - West Zone | C316: =INDEX('Prop2024-25DistTar'!$H$101:$H$103,C306) -> 45614.37784 | D316: =INDEX('Prop2024-25DistTar'!$H$101:$H$103,D306) -> 19435.11133 | E316: =INDEX('Prop2024-25DistTar'!$H$101:$H$103,E306) -> 0
B317: =B313 -> Proposed: Tariff M - West Zone | C317: =INDEX('Prop2024-25DistTar'!$G$101:$G$103,C306) -> 48669.58843 | D317: =INDEX('Prop2024-25DistTar'!$G$101:$G$103,D306) -> 20736.85906 | E317: =INDEX('Prop2024-25DistTar'!$G$101:$G$103,E306) -> 0
B319: Revenue | C319: Total
B320: =B316 -> Existing: Tariff M - West Zone | C320: =SUM(C316:E316) -> 65049.48917
B321: =B317 -> Proposed: Tariff M - West Zone | C321: =SUM(C317:E317) -> 69406.4475
B323: Average price movement | C323: =IF(C321=0,"",C321/C320) -> 1.066979132
B325: =IF(C323="","",IF(C323<=$C$15,"REBALANCING CONTROL COMPLIANT","REBALANCING CONTROL BREACHED")) -> REBALANCING CONTROL COMPLIANT
B329: ='Prop2024-25DistTar'!B105 -> Tariff M - Adjoining Central Zone
C330: 1 | D330: 2 | E330: 3
B331: Distribution tariff | C331: DemBlk1 | D331: DemBlk2 | E331: DemBlk2
B332: ="Existing: "&'Prop2024-25DistTar'!C105 -> Existing: Tariff M - Adjoining Central Zone | C332: =INDEX('Prop2024-25DistTar'!$E$106:$E$108,C330) -> 752.2987 | D332: =INDEX('Prop2024-25DistTar'!$E$106:$E$108,D330) -> 716.5018 | E332: =INDEX('Prop2024-25DistTar'!$E$106:$E$108,E330) -> 149.6071
B333: ="Proposed: "&B329 -> Proposed: Tariff M - Adjoining Central Zone | C333: =INDEX('Prop2024-25DistTar'!$D$106:$D$108,C330) -> 802.687 | D333: =INDEX('Prop2024-25DistTar'!$D$106:$D$108,D330) -> 764.4925 | E333: =INDEX('Prop2024-25DistTar'!$D$106:$D$108,E330) -> 159.6277
B335: Distribution volumes (actual) | C335: DemBlk1 | D335: DemBlk2 | E335: DemBlk2
B336: =B332 -> Existing: Tariff M - Adjoining Central Zone | C336: =INDEX('Prop2024-25DistTar'!$F$106:$F$108,C$282) -> 0 | D336: =INDEX('Prop2024-25DistTar'!$F$106:$F$108,D$282) -> 0 | E336: =INDEX('Prop2024-25DistTar'!$F$106:$F$108,E$282) -> 0
B337: =B333 -> Proposed: Tariff M - Adjoining Central Zone | C337: =INDEX('Prop2024-25DistTar'!$F$106:$F$108,C$282) -> 0 | D337: =INDEX('Prop2024-25DistTar'!$F$106:$F$108,D$282) -> 0 | E337: =INDEX('Prop2024-25DistTar'!$F$106:$F$108,E$282) -> 0
B339: Distribution revenue | C339: DemBlk1 | D339: DemBlk2 | E339: DemBlk2
B340: =B336 -> Existing: Tariff M - Adjoining Central Zone | C340: =INDEX('Prop2024-25DistTar'!$H$106:$H$108,C330) -> 0 | D340: =INDEX('Prop2024-25DistTar'!$H$106:$H$108,D330) -> 0 | E340: =INDEX('Prop2024-25DistTar'!$H$106:$H$108,E330) -> 0
B341: =B337 -> Proposed: Tariff M - Adjoining Central Zone | C341: =INDEX('Prop2024-25DistTar'!$G$106:$G$108,C330) -> 0 | D341: =INDEX('Prop2024-25DistTar'!$G$106:$G$108,D330) -> 0 | E341: =INDEX('Prop2024-25DistTar'!$G$106:$G$108,E330) -> 0
... 85 more rows

Sheet ARS
A1: ="Tariff Approval - "&'Model update'!B3 -> Tariff Approval - AusNet Services
A3: Ancillary Reference Services (Exc GST)
B5: ='Model update'!$B$8 -> 2023-24 | C5: ='Model update'!$B$5 -> 2024-25
A6: Disconnection | B6: 64 | C6: =ROUND(B6*(1+'Model update'!$B$31),2) -> 66.59
A7: Reconnection of Meter | B7: 64 | C7: =ROUND(B7*(1+'Model update'!$B$31),2) -> 66.59
A8: Special Meter Reads | B8: 6.98 | C8: =ROUND(B8*(1+'Model update'!$B$31),2) -> 7.26
A9: Meter and gas installation test | B9: 192.01 | C9: =ROUND(B9*(1+'Model update'!$B$31),2) -> 199.79
A10: Meter fix or meter reinstallation | B10: 141.03 | C10: =ROUND(B10*(1+'Model update'!$B$31),2) -> 146.74
A11: Service abolishment - residential | B11: 220 | C11: =ROUND(B11*(1+'Model update'!$B$31),2) -> 228.91
A12: Minor meter alter position | B12: 1001.6 | C12: =ROUND(B12*(1+'Model update'!$B$31),2) -> 1042.18
